Workbook

Sheet Wksh 1 - Market Experience
A1: Press TAB and directional arrow keys to read through the document. If macros are disabled, press and hold the ALT key and press the F, then I, and then N key. After that, select the Enable All Content option by pressing enter. (note that you can also press the C key to select "Enable All Content") Instructions can be found in cells K1 through K4. If screen reader fails to announce a cell after performing a dropdown selection, please press F2 and then ESC to force the screen reader to resume. | B1: Unified Rate Review v6.0 [assistive technology users, please reference cell A1 for instructions] | K1: To add a product to Worksheet 2 - Plan Product Info, select the Add Product button or Ctrl + Shift + P.
K2: To add a plan to Worksheet 2 - Plan Product Info, select the Add Plan button or Ctrl + Shift + L.
B3: Company Legal Name: | C3: Anthem Health Plans of Kentucky, Inc. | K3: To validate, select the Validate button or Ctrl + Shift + I.
B4: HIOS Issuer ID: | C4: 36239 | D4: State: | E4: KY | K4: To finalize, select the Finalize button or Ctrl + Shift + F.
B5: Effective Date of Rate Change(s): | C5: =MAX('Wksh 2 - Plan Product Info'!E19:BE19) -> 2024-01-01 | D5: Market: | E5: Individual
B8: Market Level Calculations (Same for all Plans)
B11: Section I: Experience Period Data
B12: Experience Period: | D12: 2022-01-01 | E12: to | F12: =EDATE(D12,12)-1 -> 2022-12-31
E13: Total | F13: PMPM
B14: Allowed Claims | E14: 257421374.9 | F14: =E14/E19 -> 538.1669033
B15: Reinsurance | E15: 0 | F15: =E15/E19 -> 0
B16: Incurred Claims in Experience Period | E16: 196027767.1 | F16: =E16/E19 -> 409.8170031
B17: Risk Adjustment | E17: -3744244.63 | F17: =E17/E19 -> -7.827743671
B18: Experience Period Premium | E18: 261135814.7 | F18: =E18/E19 -> 545.9323369
B19: Experience Period Member Months | E19: ='Wksh 2 - Plan Product Info'!D33 -> 478330
B21: Section II: Projections
D22: Year 1 Trend | F22: Year 2 Trend
B23: Benefit Category | C23: Experience Period Index Rate PMPM | D23: Cost | E23: Utilization | F23: Cost | G23: Utilization | H23: Trended EHB Allowed Claims PMPM
B24: Inpatient Hospital | C24: 87.85235857 | D24: 1.034312433 | E24: 1.026014496 | F24: 1.034312433 | G24: 1.026014496 | H24: =PRODUCT(C24:G24) -> 98.93817819
B25: Outpatient Hospital | C25: 209.8130822 | D25: 1.034312433 | E25: 1.026014496 | F25: 1.034312433 | G25: 1.026014496 | H25: 236.2887514
B26: Professional | C26: 103.4014842 | D26: 1.034312433 | E26: 1.026014496 | F26: 1.034312433 | G26: 1.026014496 | H26: 116.4494003
B27: Other Medical | C27: 11.2418773 | D27: 1.034312433 | E27: 1.026014496 | F27: 1.034312433 | G27: 1.026014496 | H27: 12.66045531
B28: Capitation | C28: 1.733695768e-05 | D28: 1.004926863 | E28: 1.004926863 | F28: 1.004926863 | G28: 1.004926863 | H28: 1.768115828e-05
B29: Prescription Drug | C29: 125.4811804 | D29: 1.048874055 | E29: 1.121705832 | F29: 1.048874055 | G29: 1.121705832 | H29: 173.6933684
B30: Total | C30: =SUM(C24:C29) -> 537.79 | H30: =SUM(H24:H29) -> 638.0301712
B32: Morbidity Adjustment | F32: 1.01
B33: Demographic Shift | F33: 0.985
B34: Plan Design Changes | F34: 1
B35: Other | F35: 1.124673325
B36: Adjusted Trended EHB Allowed Claims PMPM for | D36: =IF(C5<>"",C5,"") -> 2024-01-01 | F36: =H30*PRODUCT(F32:F35) -> 713.88
B38: Manual EHB Allowed Claims PMPM | F38: 0
B39: Applied Credibility % | F39: 1
G41: Projected Period Totals
B42: Projected Index Rate for | D42: =IF(C5<>"",C5,"") -> 2024-01-01 | F42: =ROUND(F39*F36+(1-F39)*F38,2) -> 713.88 | G42: =F42*F48 -> 365359500.7
B43: Reinsurance | F43: 0 | G43: =F43*F48 -> 0
B44: Risk Adjustment Payment/Charge | F44: -13.30866403 | G44: =F44*F48 -> -6811294.398
B45: Exchange User Fees | F45: 0 | G45: =F45*F46*F48 -> 0
B46: Market Adjusted Index Rate | F46: =(F42-F43-F44)/(1-F45) -> 727.188664 | G46: =F46*F48 -> 372170795.1
B48: Projected Member Months | F48: ='Wksh 2 - Plan Product Info'!D73 -> 511794
B50: Information Not Releasable to the Public Unless Authorized by Law: This information has not been publically disclosed and may be privileged and confidential. It is for internal government use only and must not be disseminated, distributed, or copied to persons not authorized to receive the information. Unauthorized disclosure may result in prosecution to the full extent of the law.

Sheet Wksh 2 - Plan Product Info
A1: Press TAB and directional arrow keys to read through the document. If macros are disabled, press and hold the ALT key and press the F, then I, and then N key. After that, select the Enable All Content option by pressing enter. (note that you can also press the C key to select "Enable All Content") Instructions can be found in cells P1 through P6. If screen reader fails to announce a cell after performing a dropdown selection, please press F2 and then ESC to force the screen reader to resume. | C1: Product-Plan Data Collection [assistive technology users, please reference cell A1 for instructions] | P1: To add a product to Worksheet 2 - Plan Product Info, select the Add Product button or Ctrl + Shift + P.
P2: To add a plan to Worksheet 2 - Plan Product Info, select the Add Plan button or Ctrl + Shift + L.
C3: Company Legal Name: | D3: =IF('Wksh 1 - Market Experience'!C3<>"", 'Wksh 1 - Market Experience'!C3,"") -> Anthem Health Plans of Kentucky, Inc. | P3: To validate, select the Validate button or Ctrl + Shift + I.
C4: HIOS Issuer ID: | D4: =IF('Wksh 1 - Market Experience'!C4<>"", 'Wksh 1 - Market Experience'!C4,"") -> 36239 | E4: State: | F4: =IF('Wksh 1 - Market Experience'!E4<>"",'Wksh 1 - Market Experience'!E4,"") -> KY | P4: To finalize, select the Finalize button or Ctrl + Shift + F.
C5: Effective Date of Rate Change(s): | D5: =IF('Wksh 1 - Market Experience'!C5<>"", 'Wksh 1 - Market Experience'!C5,"") -> 2024-01-01 | E5: Market: | F5: =IF('Wksh 1 - Market Experience'!E5<>"",'Wksh 1 - Market Experience'!E5,"") -> Individual | P5: To remove a product, navigate to the corresponding Product Name/Product ID field and select the Remove Product button or Ctrl + Shift + Q.
P6: To remove a plan, navigate to the corresponding Plan Name/Plan ID field and select the Remove Plan button or Ctrl + Shift + A.
C7: Product/Plan Level Calculations
B9: Field # | C9: Section I: General Product and Plan Information
B10: 1.1 | C10: Product Name | E10: Terminated Products | F10: HMO On Exchange
B11: 1.2 | C11: Product ID | E11: 36239KY017 | F11: 36239KY114
B12: 1.3 | C12: Plan Name | E12: 2022 Experience | F12: Anthem Catastrophic Pathway Transition X HMO 9450 (+ Incentives) | G12: Anthem Catastrophic Pathway Transition X HMO 9450 (+ Incentives) | H12: Anthem Catastrophic Pathway Transition X HMO 9450 (+ Incentives) | I12: Anthem Catastrophic Pathway Transition X HMO 9450 (+ Incentives) | J12: Anthem Catastrophic Pathway X HMO 9450 (+ Incentives) | K12: Anthem Bronze Pathway X Transition HMO 7700 (0 Virtual PCP + 0 Select Drugs + Incentives) | L12: Anthem Bronze Pathway X Transition HMO 7700 (0 Virtual PCP + 0 Select Drugs + Incentives) | M12: Anthem Bronze Pathway X Transition HMO 7700 (0 Virtual PCP + 0 Select Drugs + Incentives) | N12: Anthem Bronze Pathway X Transition HMO 7700 (0 Virtual PCP + 0 Select Drugs + Incentives) | O12: Anthem Bronze Pathway X Transition HMO 9450 (0 Virtual PCP + 0 Select Drugs + Incentives) | P12: Anthem Bronze Pathway X Transition HMO 9450 (0 Virtual PCP + 0 Select Drugs + Incentives) | Q12: Anthem Bronze Pathway X Transition HMO 9450 (0 Virtual PCP + 0 Select Drugs + Incentives) | R12: Anthem Bronze Pathway X Transition HMO 9450 (0 Virtual PCP + 0 Select Drugs + Incentives) | S12: Anthem Bronze Pathway X HMO 9450 (0 Virtual PCP + 0 Select Drugs + Incentives) | T12: Anthem Bronze Pathway X HMO 7700 (0 Virtual PCP + 0 Select Drugs + Incentives) | U12: Anthem Bronze Pathway X Transition HMO 6800 for HSA ( + Incentives) | V12: Anthem Bronze Pathway X Transition HMO 6800 for HSA ( + Incentives) | W12: Anthem Bronze Pathway X Transition HMO 6800 for HSA ( + Incentives) | X12: Anthem Bronze Pathway X Transition HMO 6800 for HSA ( + Incentives) | Y12: Anthem Bronze Pathway X HMO 6700 for HSA ( + Incentives) | Z12: Anthem Bronze Pathway X Transition HMO 7300 (0 Virtual PCP + 0 Select Drugs + Incentives) | AA12: Anthem Bronze Pathway X Transition HMO 7300 (0 Virtual PCP + 0 Select Drugs + Incentives) | AB12: Anthem Bronze Pathway X Transition HMO 7300 (0 Virtual PCP + 0 Select Drugs + Incentives) | AC12: Anthem Bronze Pathway X Transition HMO 7300 (0 Virtual PCP + 0 Select Drugs + Incentives) | AD12: Anthem Bronze Pathway X HMO 6700 (0 Virtual PCP + 0 Select Drugs + Incentives) | AE12: Anthem Bronze Pathway X HMO 7000 Adult Dental Vision (0 Virtual PCP+0 Select Drugs+Incentives) | AF12: Anthem Bronze Pathway X Transition HMO 7000 Adult Dental Vision(0 Virt PCP+0 Select Drugs+Incent) | AG12: Anthem Bronze Pathway X Transition HMO 7000 Adult Dental Vision(0 Virt PCP+0 Select Drugs+Incent) | AH12: Anthem Bronze Pathway X Transition HMO 7000 Adult Dental Vision(0 Virt PCP+0 Select Drugs+Incent) | AI12: Anthem Bronze Pathway X Transition HMO 7000 Adult Dental Vision(0 Virt PCP+0 Select Drugs+Incent) | AJ12: Anthem Silver Pathway X HMO 6000 (0 Virtual PCP + 0 Select Drugs + Incentives) | AK12: Anthem Silver Pathway X HMO 500 (0 Virtual PCP + 0 Select Drugs + Incentives) | AL12: Anthem Silver Pathway X HMO 3500 (0 Virtual PCP + 0 Select Drugs + Incentives) | AM12: Anthem Silver Pathway X HMO 3500 for HSA ( + Incentives) | AN12: Anthem Silver Pathway X Transition HMO 4200 for HSA ( + Incentives) | AO12: Anthem Silver Pathway X Transition HMO 4200 for HSA ( + Incentives) | AP12: Anthem Silver Pathway X Transition HMO 4200 for HSA ( + Incentives) | AQ12: Anthem Silver Pathway X Transition HMO 4200 for HSA ( + Incentives) | AR12: Anthem Silver Pathway X Transition HMO 6500 (0 Virtual PCP + 0 Select Drugs + Incentives) | AS12: Anthem Silver Pathway X Transition HMO 6500 (0 Virtual PCP + 0 Select Drugs + Incentives) | AT12: Anthem Silver Pathway X Transition HMO 6500 (0 Virtual PCP + 0 Select Drugs + Incentives) | AU12: Anthem Silver Pathway X Transition HMO 6500 (0 Virtual PCP + 0 Select Drugs + Incentives) | AV12: Anthem Silver Pathway X Transition HMO 4500 Adult Dental Vision(0 Virt PCP+0 Select Drugs+Incent) | AW12: Anthem Silver Pathway X Transition HMO 4500 Adult Dental Vision(0 Virt PCP+0 Select Drugs+Incent) | AX12: Anthem Silver Pathway X Transition HMO 4500 Adult Dental Vision(0 Virt PCP+0 Select Drugs+Incent) | AY12: Anthem Silver Pathway X Transition HMO 4500 Adult Dental Vision(0 Virt PCP+0 Select Drugs+Incent) | AZ12: Anthem Silver Pathway X HMO 4500 Adult Dental Vision (0 Virtual PCP+0 Select Drugs+Incentives) | BA12: Anthem Gold Pathway X HMO 2300 (0 Virtual PCP + 0 Select Drugs + Incentives) | BB12: Anthem Gold Pathway X Transition HMO 2300 (0 Virtual PCP + 0 Select Drugs + Incentives) | BC12: Anthem Gold Pathway X Transition HMO 2300 (0 Virtual PCP + 0 Select Drugs + Incentives) | BD12: Anthem Gold Pathway X Transition HMO 2300 (0 Virtual PCP + 0 Select Drugs + Incentives) | BE12: Anthem Gold Pathway X Transition HMO 2300 (0 Virtual PCP + 0 Select Drugs + Incentives)
B13: 1.4 | C13: Plan ID (Standard Component ID) | E13: 36239KY0170000 | F13: 36239KY1140043 | G13: 36239KY1140056 | H13: 36239KY1140057 | I13: 36239KY1140067 | J13: 36239KY1140039 | K13: 36239KY1140077 | L13: 36239KY1140078 | M13: 36239KY1140079 | N13: 36239KY1140080 | O13: 36239KY1140072 | P13: 36239KY1140073 | Q13: 36239KY1140074 | R13: 36239KY1140075 | S13: 36239KY1140071 | T13: 36239KY1140076 | U13: 36239KY1140042 | V13: 36239KY1140053 | W13: 36239KY1140054 | X13: 36239KY1140055 | Y13: 36239KY1140034 | Z13: 36239KY1140038 | AA13: 36239KY1140051 | AB13: 36239KY1140052 | AC13: 36239KY1140065 | AD13: 36239KY1140001 | AE13: 36239KY1140090 | AF13: 36239KY1140085 | AG13: 36239KY1140086 | AH13: 36239KY1140087 | AI13: 36239KY1140088 | AJ13: 36239KY1140045 | AK13: 36239KY1140064 | AL13: 36239KY1140005 | AM13: 36239KY1140035 | AN13: 36239KY1140046 | AO13: 36239KY1140060 | AP13: 36239KY1140061 | AQ13: 36239KY1140062 | AR13: 36239KY1140040 | AS13: 36239KY1140058 | AT13: 36239KY1140059 | AU13: 36239KY1140066 | AV13: 36239KY1140081 | AW13: 36239KY1140083 | AX13: 36239KY1140084 | AY13: 36239KY1140082 | AZ13: 36239KY1140089 | BA13: 36239KY1140009 | BB13: 36239KY1140044 | BC13: 36239KY1140068 | BD13: 36239KY1140069 | BE13: 36239KY1140070
B14: 1.5 | C14: Metal | E14: Not Applicable | F14: Catastrophic | G14: Catastrophic | H14: Catastrophic | I14: Catastrophic | J14: Catastrophic | K14: Bronze | L14: Bronze | M14: Bronze | N14: Bronze | O14: Bronze | P14: Bronze | Q14: Bronze | R14: Bronze | S14: Bronze | T14: Bronze | U14: Bronze | V14: Bronze | W14: Bronze | X14: Bronze | Y14: Bronze | Z14: Bronze | AA14: Bronze | AB14: Bronze | AC14: Bronze | AD14: Bronze | AE14: Bronze | AF14: Bronze | AG14: Bronze | AH14: Bronze | AI14: Bronze | AJ14: Silver | AK14: Silver | AL14: Silver | AM14: Silver | AN14: Silver | AO14: Silver | AP14: Silver | AQ14: Silver | AR14: Silver | AS14: Silver | AT14: Silver | AU14: Silver | AV14: Silver | AW14: Silver | AX14: Silver | AY14: Silver | AZ14: Silver | BA14: Gold | BB14: Gold | BC14: Gold | BD14: Gold | BE14: Gold
B15: 1.6 | C15: AV Metal Value | E15: 0 | F15: 0.622 | G15: 0.622 | H15: 0.622 | I15: 0.622 | J15: 0.622 | K15: 0.639 | L15: 0.639 | M15: 0.639 | N15: 0.639 | O15: 0.602 | P15: 0.602 | Q15: 0.602 | R15: 0.602 | S15: 0.602 | T15: 0.639 | U15: 0.647 | V15: 0.647 | W15: 0.647 | X15: 0.647 | Y15: 0.65 | Z15: 0.65 | AA15: 0.65 | AB15: 0.65 | AC15: 0.65 | AD15: 0.65 | AE15: 0.647 | AF15: 0.647 | AG15: 0.647 | AH15: 0.647 | AI15: 0.647 | AJ15: 0.709 | AK15: 0.71 | AL15: 0.701 | AM15: 0.719 | AN15: 0.709 | AO15: 0.709 | AP15: 0.709 | AQ15: 0.709 | AR15: 0.709 | AS15: 0.709 | AT15: 0.709 | AU15: 0.709 | AV15: 0.702 | AW15: 0.702 | AX15: 0.702 | AY15: 0.702 | AZ15: 0.702 | BA15: 0.78 | BB15: 0.78 | BC15: 0.78 | BD15: 0.78 | BE15: 0.78
B16: 1.7 | C16: Plan Category | E16: Terminated | F16: Renewing | G16: Renewing | H16: Renewing | I16: Renewing | J16: Renewing | K16: Renewing | L16: Renewing | M16: Renewing | N16: Renewing | O16: Renewing | P16: Renewing | Q16: Renewing | R16: Renewing | S16: Renewing | T16: Renewing | U16: Renewing | V16: Renewing | W16: Renewing | X16: Renewing | Y16: Renewing | Z16: Renewing | AA16: Renewing | AB16: Renewing | AC16: Renewing | AD16: Renewing | AE16: New | AF16: New | AG16: New | AH16: New | AI16: New | AJ16: Renewing | AK16: Renewing | AL16: Renewing | AM16: Renewing | AN16: Renewing | AO16: Renewing | AP16: Renewing | AQ16: Renewing | AR16: Renewing | AS16: Renewing | AT16: Renewing | AU16: Renewing | AV16: New | AW16: New | AX16: New | AY16: New | AZ16: New | BA16: Renewing | BB16: Renewing | BC16: Renewing | BD16: Renewing | BE16: Renewing
B17: 1.8 | C17: Plan Type | E17: HMO | F17: HMO | G17: HMO | H17: HMO | I17: HMO | J17: HMO | K17: HMO | L17: HMO | M17: HMO | N17: HMO | O17: HMO | P17: HMO | Q17: HMO | R17: HMO | S17: HMO | T17: HMO | U17: HMO | V17: HMO | W17: HMO | X17: HMO | Y17: HMO | Z17: HMO | AA17: HMO | AB17: HMO | AC17: HMO | AD17: HMO | AE17: HMO | AF17: HMO | AG17: HMO | AH17: HMO | AI17: HMO | AJ17: HMO | AK17: HMO | AL17: HMO | AM17: HMO | AN17: HMO | AO17: HMO | AP17: HMO | AQ17: HMO | AR17: HMO | AS17: HMO | AT17: HMO | AU17: HMO | AV17: HMO | AW17: HMO | AX17: HMO | AY17: HMO | AZ17: HMO | BA17: HMO | BB17: HMO | BC17: HMO | BD17: HMO | BE17: HMO
B18: 1.9 | C18: Exchange Plan? | E18: No | F18: Yes | G18: Yes | H18: Yes | I18: Yes | J18: Yes | K18: Yes | L18: Yes | M18: Yes | N18: Yes | O18: Yes | P18: Yes | Q18: Yes | R18: Yes | S18: Yes | T18: Yes | U18: Yes | V18: Yes | W18: Yes | X18: Yes | Y18: Yes | Z18: Yes | AA18: Yes | AB18: Yes | AC18: Yes | AD18: Yes | AE18: Yes | AF18: Yes | AG18: Yes | AH18: Yes | AI18: Yes | AJ18: Yes | AK18: Yes | AL18: Yes | AM18: Yes | AN18: Yes | AO18: Yes | AP18: Yes | AQ18: Yes | AR18: Yes | AS18: Yes | AT18: Yes | AU18: Yes | AV18: Yes | AW18: Yes | AX18: Yes | AY18: Yes | AZ18: Yes | BA18: Yes | BB18: Yes | BC18: Yes | BD18: Yes | BE18: Yes
B19: 1.10 | C19: Effective Date of Proposed Rates | E19: 2024-01-01 | F19: 2024-01-01 | G19: 2024-01-01 | H19: 2024-01-01 | I19: 2024-01-01 | J19: 2024-01-01 | K19: 2024-01-01 | L19: 2024-01-01 | M19: 2024-01-01 | N19: 2024-01-01 | O19: 2024-01-01 | P19: 2024-01-01 | Q19: 2024-01-01 | R19: 2024-01-01 | S19: 2024-01-01 | T19: 2024-01-01 | U19: 2024-01-01 | V19: 2024-01-01 | W19: 2024-01-01 | X19: 2024-01-01 | Y19: 2024-01-01 | Z19: 2024-01-01 | AA19: 2024-01-01 | AB19: 2024-01-01 | AC19: 2024-01-01 | AD19: 2024-01-01 | AE19: 2024-01-01 | AF19: 2024-01-01 | AG19: 2024-01-01 | AH19: 2024-01-01 | AI19: 2024-01-01 | AJ19: 2024-01-01 | AK19: 2024-01-01 | AL19: 2024-01-01 | AM19: 2024-01-01 | AN19: 2024-01-01 | AO19: 2024-01-01 | AP19: 2024-01-01 | AQ19: 2024-01-01 | AR19: 2024-01-01 | AS19: 2024-01-01 | AT19: 2024-01-01 | AU19: 2024-01-01 | AV19: 2024-01-01 | AW19: 2024-01-01 | AX19: 2024-01-01 | AY19: 2024-01-01 | AZ19: 2024-01-01 | BA19: 2024-01-01 | BB19: 2024-01-01 | BC19: 2024-01-01 | BD19: 2024-01-01 | BE19: 2024-01-01
B20: 1.11 | C20: Cumulative Rate Change % (over 12 mos prior) | E20: 0 | F20: 0.0878 | G20: -0.0001 | H20: 0.1075 | I20: 0.0887 | J20: 0.083 | K20: 0.0463 | L20: 0.0367 | M20: -0.048 | N20: 0.0578 | O20: 0.0541 | P20: 0.044 | Q20: -0.0414 | R20: 0.0651 | S20: 0.0464 | T20: 0.0238 | U20: 0.0629 | V20: 0.0638 | W20: -0.0232 | X20: 0.0853 | Y20: 0.0601 | Z20: 0.0307 | AA20: -0.054 | AB20: 0.0498 | AC20: 0.0301 | AD20: 0.0608 | AE20: 0 | AF20: 0 | AG20: 0 | AH20: 0 | AI20: 0 | AJ20: 0.0765 | AK20: 0.0619 | AL20: 0.08 | AM20: 0.084 | AN20: 0.1208 | AO20: 0.1253 | AP20: 0.0333 | AQ20: 0.1452 | AR20: 0.0771 | AS20: -0.0122 | AT20: 0.0947 | AU20: 0.0757 | AV20: 0 | AW20: 0 | AX20: 0 | AY20: 0 | AZ20: 0 | BA20: 0.0206 | BB20: 0.0123 | BC20: 0.0217 | BD20: -0.0617 | BE20: 0.0425
B21: 1.12 | C21: Product Rate Increase % | E21: =IF(SUMPRODUCT((E16:E16="Renewing")*((E14:E14="Platinum")+(E14:E14="Gold")+(E14:E14="Silver")+(E14:E14="Bronze")+(E14:E14="Catastrophic")))=0, 0, ROUND(ROUND(SUMPRODUCT(1+E20:E20,E34:E34,E35:E35,--(E16:E16="Renewing")*((E14:E14="Platinum")+(E14:E14="Gold")+(E14:E14="Silver")+(E14:E14="Bronze")+(E14:E14="Catastrophic")))/SUMPRODUCT(E34:E34,E35:E35,--(E16:E16="Renewing")*((E14:E14="Platinum")+(E14:E14="Gold")+(E14:E14="Silver")+(E14:E14="Bronze")+(E14:E14="Catastrophic"))), 4)-1, 4)) -> 0 | F21: =IF(SUMPRODUCT((F16:BE16="Renewing")*((F14:BE14="Platinum")+(F14:BE14="Gold")+(F14:BE14="Silver")+(F14:BE14="Bronze")+(F14:BE14="Catastrophic")))=0, 0, ROUND(ROUND(SUMPRODUCT(1+F20:BE20,F34:BE34,F35:BE35,--(F16:BE16="Renewing")*((F14:BE14="Platinum")+(F14:BE14="Gold")+(F14:BE14="Silver")+(F14:BE14="Bronze")+(F14:BE14="Catastrophic")))/SUMPRODUCT(F34:BE34,F35:BE35,--(F16:BE16="Renewing")*((F14:BE14="Platinum")+(F14:BE14="Gold")+(F14:BE14="Silver")+(F14:BE14="Bronze")+(F14:BE14="Catastrophic"))), 4)-1, 4)) -> 0.0651
B22: 1.13 | C22: Submission Level Rate Increase % | E22: =IF(SUMPRODUCT((E16:BE16="Renewing")*((E14:BE14="Platinum")+(E14:BE14="Gold")+(E14:BE14="Silver")+(E14:BE14="Bronze")+(E14:BE14="Catastrophic")))=0, 0, ROUND(ROUND(SUMPRODUCT(1+E20:BE20,E34:BE34,E35:BE35,--(E16:BE16="Renewing")*((E14:BE14="Platinum")+(E14:BE14="Gold")+(E14:BE14="Silver")+(E14:BE14="Bronze")+(E14:BE14="Catastrophic")))/SUMPRODUCT(E34:BE34,E35:BE35,--(E16:BE16="Renewing")*((E14:BE14="Platinum")+(E14:BE14="Gold")+(E14:BE14="Silver")+(E14:BE14="Bronze")+(E14:BE14="Catastrophic"))), 4)-1, 4)) -> 0.0651
A24: Worksheet 1 Totals | C24: Section II: Experience Period and Current Plan Level Information
B25: 2.1 | C25: Plan ID (Standard Component ID) | D25: Total | E25: =E13 -> 36239KY0170000 | F25: 36239KY1140043 | G25: 36239KY1140056 | H25: 36239KY1140057 | I25: 36239KY1140067 | J25: 36239KY1140039 | K25: 36239KY1140077 | L25: 36239KY1140078 | M25: 36239KY1140079 | N25: 36239KY1140080 | O25: 36239KY1140072 | P25: 36239KY1140073 | Q25: 36239KY1140074 | R25: 36239KY1140075 | S25: 36239KY1140071 | T25: 36239KY1140076 | U25: 36239KY1140042 | V25: 36239KY1140053 | W25: 36239KY1140054 | X25: 36239KY1140055 | Y25: 36239KY1140034 | Z25: 36239KY1140038 | AA25: 36239KY1140051 | AB25: 36239KY1140052 | AC25: 36239KY1140065 | AD25: 36239KY1140001 | AE25: 36239KY1140090 | AF25: 36239KY1140085 | AG25: 36239KY1140086 | AH25: 36239KY1140087 | AI25: 36239KY1140088 | AJ25: 36239KY1140045 | AK25: =AK13 -> 36239KY1140064 | AL25: 36239KY1140005 | AM25: 36239KY1140035 | AN25: 36239KY1140046 | AO25: 36239KY1140060 | AP25: 36239KY1140061 | AQ25: 36239KY1140062 | AR25: 36239KY1140040 | AS25: 36239KY1140058 | AT25: 36239KY1140059 | AU25: 36239KY1140066 | AV25: 36239KY1140081 | AW25: 36239KY1140083 | AX25: 36239KY1140084 | AY25: 36239KY1140082 | AZ25: 36239KY1140089 | BA25: 36239KY1140009 | BB25: 36239KY1140044 | BC25: 36239KY1140068 | BD25: 36239KY1140069 | BE25: 36239KY1140070
A26: ='Wksh 1 - Market Experience'!E14 -> 257421374.9 | B26: 2.2 | C26: Allowed Claims | D26: =SUM(E26:XFD26) -> 256191957 | E26: =61218827.98 -> 61218827.98 | F26: =216498.44 -> 216498.44 | G26: =50205.36 -> 50205.36 | H26: =-132.51 -> -132.51 | I26: =11461.45 -> 11461.45 | J26: =610256.12 -> 610256.12 | K26: =0 -> 0 | L26: =0 -> 0 | M26: =0 -> 0 | N26: =0 -> 0 | O26: =0 -> 0 | P26: =0 -> 0 | Q26: =0 -> 0 | R26: =0 -> 0 | S26: =0 -> 0 | T26: =0 -> 0 | U26: =5188329.3 -> 5188329.3 | V26: =2650272.13 -> 2650272.13 | W26: =2131466.31 -> 2131466.31 | X26: =215956.43 -> 215956.43 | Y26: =22594576.01 -> 22594576.01 | Z26: =2772903.45 -> 2772903.45 | AA26: =676700.82 -> 676700.82 | AB26: =382948.4 -> 382948.4 | AC26: =514118.29 -> 514118.29 | AD26: =17067101.34 -> 17067101.34 | AE26: =0 -> 0 | AF26: =0 -> 0 | AG26: =0 -> 0 | AH26: =0 -> 0 | AI26: =0 -> 0 | AJ26: =53267186.9 -> 53267186.9 | AK26: =3011912.5 -> 3011912.5 | AL26: =29864662.39 -> 29864662.39 | AM26: =9612418.69 -> 9612418.69 | AN26: =9676346.16 -> 9676346.16 | AO26: =5264177.55 -> 5264177.55 | AP26: =2086585.07 -> 2086585.07 | AQ26: =657896.94 -> 657896.94 | AR26: =11451313.91 -> 11451313.91 | AS26: =2129088.83 -> 2129088.83 | AT26: =440226.39 -> 440226.39 | AU26: =3265846.22 -> 3265846.22 | AV26: =0 -> 0 | AW26: =0 -> 0 | AX26: =0 -> 0 | AY26: =0 -> 0 | AZ26: =0 -> 0 | BA26: =7324233.56 -> 7324233.56 | BB26: =1571544 -> 1571544 | BC26: =163158.23 -> 163158.23 | BD26: =54054.14 -> 54054.14 | BE26: =49816.16 -> 49816.16
A27: ='Wksh 1 - Market Experience'!E15 -> 0 | B27: 2.3 | C27: Reinsurance | D27: =SUM(E27:XFD27) -> 0 | E27: =0 -> 0 | F27: =0 -> 0 | G27: =0 -> 0 | H27: =0 -> 0 | I27: =0 -> 0 | J27: =0 -> 0 | K27: =0 -> 0 | L27: =0 -> 0 | M27: =0 -> 0 | N27: =0 -> 0 | O27: =0 -> 0 | P27: =0 -> 0 | Q27: =0 -> 0 | R27: =0 -> 0 | S27: =0 -> 0 | T27: =0 -> 0 | U27: =0 -> 0 | V27: =0 -> 0 | W27: =0 -> 0 | X27: =0 -> 0 | Y27: =0 -> 0 | Z27: =0 -> 0 | AA27: =0 -> 0 | AB27: =0 -> 0 | AC27: =0 -> 0 | AD27: =0 -> 0 | AE27: =0 -> 0 | AF27: =0 -> 0 | AG27: =0 -> 0 | AH27: =0 -> 0 | AI27: =0 -> 0 | AJ27: =0 -> 0 | AK27: =0 -> 0 | AL27: =0 -> 0 | AM27: =0 -> 0 | AN27: =0 -> 0 | AO27: =0 -> 0 | AP27: =0 -> 0 | AQ27: =0 -> 0 | AR27: =0 -> 0 | AS27: =0 -> 0 | AT27: =0 -> 0 | AU27: =0 -> 0 | AV27: =0 -> 0 | AW27: =0 -> 0 | AX27: =0 -> 0 | AY27: =0 -> 0 | AZ27: =0 -> 0 | BA27: =0 -> 0 | BB27: =0 -> 0 | BC27: =0 -> 0 | BD27: =0 -> 0 | BE27: =0 -> 0
B28: 2.4 | C28: Member Cost Sharing | D28: =SUM(E28:XFD28) -> 60910246.53 | E28: =16220938.28 -> 16220938.28 | F28: =177058.62 -> 177058.62 | G28: =40271.43 -> 40271.43 | H28: =1041.68 -> 1041.68 | I28: =12848.23 -> 12848.23 | J28: =261809.99 -> 261809.99 | K28: =0 -> 0 | L28: =0 -> 0 | M28: =0 -> 0 | N28: =0 -> 0 | O28: =0 -> 0 | P28: =0 -> 0 | Q28: =0 -> 0 | R28: =0 -> 0 | S28: =0 -> 0 | T28: =0 -> 0 | U28: =1820475.16 -> 1820475.16 | V28: =1044568.97 -> 1044568.97 | W28: =631182.51 -> 631182.51 | X28: =108830.28 -> 108830.28 | Y28: =6909580.58 -> 6909580.58 | Z28: =1081453.67 -> 1081453.67 | AA28: =268583.62 -> 268583.62 | AB28: =107910.65 -> 107910.65 | AC28: =261264.61 -> 261264.61 | AD28: =5590412.28 -> 5590412.28 | AE28: =0 -> 0 | AF28: =0 -> 0 | AG28: =0 -> 0 | AH28: =0 -> 0 | AI28: =0 -> 0 | AJ28: =8799992.27 -> 8799992.27 | AK28: =701924.58 -> 701924.58 | AL28: =6513685.27 -> 6513685.27 | AM28: =1618132.85 -> 1618132.85 | AN28: =1794846.46 -> 1794846.46 | AO28: =1165628.96 -> 1165628.96 | AP28: =355121 -> 355121 | AQ28: =123771.62 -> 123771.62 | AR28: =2208029.44 -> 2208029.44 | AS28: =462759.91 -> 462759.91 | AT28: =128677.94 -> 128677.94 | AU28: =646166.16 -> 646166.16 | AV28: =0 -> 0 | AW28: =0 -> 0 | AX28: =0 -> 0 | AY28: =0 -> 0 | AZ28: =0 -> 0 | BA28: =1400145.49 -> 1400145.49 | BB28: =360411.47 -> 360411.47 | BC28: =51093.97 -> 51093.97 | BD28: =19304.21 -> 19304.21 | BE28: =22324.37 -> 22324.37
B29: 2.5 | C29: Cost Sharing Reduction | D29: =SUM(E29:XFD29) -> 0 | E29: =0 -> 0 | F29: =0 -> 0 | G29: =0 -> 0 | H29: =0 -> 0 | I29: =0 -> 0 | J29: =0 -> 0 | K29: =0 -> 0 | L29: =0 -> 0 | M29: =0 -> 0 | N29: =0 -> 0 | O29: =0 -> 0 | P29: =0 -> 0 | Q29: =0 -> 0 | R29: =0 -> 0 | S29: =0 -> 0 | T29: =0 -> 0 | U29: =0 -> 0 | V29: =0 -> 0 | W29: =0 -> 0 | X29: =0 -> 0 | Y29: =0 -> 0 | Z29: =0 -> 0 | AA29: =0 -> 0 | AB29: =0 -> 0 | AC29: =0 -> 0 | AD29: =0 -> 0 | AE29: =0 -> 0 | AF29: =0 -> 0 | AG29: =0 -> 0 | AH29: =0 -> 0 | AI29: =0 -> 0 | AJ29: =0 -> 0 | AK29: =0 -> 0 | AL29: =0 -> 0 | AM29: =0 -> 0 | AN29: =0 -> 0 | AO29: =0 -> 0 | AP29: =0 -> 0 | AQ29: =0 -> 0 | AR29: =0 -> 0 | AS29: =0 -> 0 | AT29: =0 -> 0 | AU29: =0 -> 0 | AV29: =0 -> 0 | AW29: =0 -> 0 | AX29: =0 -> 0 | AY29: =0 -> 0 | AZ29: =0 -> 0 | BA29: =0 -> 0 | BB29: =0 -> 0 | BC29: =0 -> 0 | BD29: =0 -> 0 | BE29: =0 -> 0
A30: ='Wksh 1 - Market Experience'!E16 -> 196027767.1 | B30: 2.6 | C30: Incurred Claims | D30: =D26-D27-D28-D29 -> 195281710.4 | E30: 44997889.7 | F30: 39439.82 | G30: 9933.93 | H30: -1174.19 | I30: -1386.78 | J30: 348446.13 | K30: 0 | L30: 0 | M30: 0 | N30: 0 | O30: 0 | P30: 0 | Q30: 0 | R30: 0 | S30: 0 | T30: 0 | U30: 3367854.14 | V30: 1605703.16 | W30: 1500283.8 | X30: 107126.15 | Y30: 15684995.43 | Z30: 1691449.78 | AA30: 408117.2 | AB30: 275037.75 | AC30: 252853.68 | AD30: 11476689.06 | AE30: 0 | AF30: 0 | AG30: 0 | AH30: 0 | AI30: 0 | AJ30: =AJ26-AJ27-AJ28-AJ29 -> 44467194.63 | AK30: 2309987.92 | AL30: 23350977.12 | AM30: 7994285.84 | AN30: 7881499.7 | AO30: 4098548.59 | AP30: 1731464.07 | AQ30: 534125.32 | AR30: 9243284.47 | AS30: 1666328.92 | AT30: 311548.45 | AU30: 2619680.06 | AV30: 0 | AW30: 0 | AX30: 0 | AY30: 0 | AZ30: 0 | BA30: 5924088.07 | BB30: 1211132.53 | BC30: 112064.26 | BD30: 34749.93 | BE30: 27491.79
A31: ='Wksh 1 - Market Experience'!E17 -> -3744244.63 | B31: 2.7 | C31: Risk Adjustment Transfer Amount | D31: =SUM(E31:XFD31) -> -3744244.63 | E31: =0 -> 0 | F31: =-54327.57 -> -54327.57 | G31: =-17883.5 -> -17883.5 | H31: =7723.89 -> 7723.89 | I31: =-43895.63 -> -43895.63 | J31: =74486.61 -> 74486.61 | K31: =0 -> 0 | L31: =0 -> 0 | M31: =0 -> 0 | N31: =0 -> 0 | O31: =0 -> 0 | P31: =0 -> 0 | Q31: =0 -> 0 | R31: =0 -> 0 | S31: =0 -> 0 | T31: =0 -> 0 | U31: =-2516515.81 -> -2516515.81 | V31: =-2023039.63 -> -2023039.63 | W31: =226284.21 -> 226284.21 | X31: =-133441.3 -> -133441.3 | Y31: =-1461132.73 -> -1461132.73 | Z31: =-1669954.5 -> -1669954.5 | AA31: =-354930.5 -> -354930.5 | AB31: =116241.79 -> 116241.79 | AC31: =-413261.55 -> -413261.55 | AD31: =-4768871.39 -> -4768871.39 | AE31: =0 -> 0 | AF31: =0 -> 0 | AG31: =0 -> 0 | AH31: =0 -> 0 | AI31: =0 -> 0 | AJ31: =342201 -> 342201 | AK31: =660134.63 -> 660134.63 | AL31: =4760565.73 -> 4760565.73 | AM31: =2607610.01 -> 2607610.01 | AN31: =1185537.77 -> 1185537.77 | AO31: =-2765474.49 -> -2765474.49 | AP31: =559836.2 -> 559836.2 | AQ31: =272359.86 -> 272359.86 | AR31: =-2073886.54 -> -2073886.54 | AS31: =-528082.31 -> -528082.31 | AT31: =-297504.49 -> -297504.49 | AU31: =-63526.53 -> -63526.53 | AV31: =0 -> 0 | AW31: =0 -> 0 | AX31: =0 -> 0 | AY31: =0 -> 0 | AZ31: =0 -> 0 | BA31: =3815678.93 -> 3815678.93 | BB31: =833121.35 -> 833121.35 | BC31: =-15917.24 -> -15917.24 | BD31: =3094.67 -> 3094.67 | BE31: =-7475.57 -> -7475.57
A32: ='Wksh 1 - Market Experience'!E18 -> 261135814.7 | B32: 2.8 | C32: Premium | D32: =SUM(E32:XFD32) -> 260899622.2 | E32: =66500863.95 -> 66500863.95 | F32: =581259.47 -> 581259.47 | G32: =138309.81 -> 138309.81 | H32: =9316.46 -> 9316.46 | I32: =79006.66 -> 79006.66 | J32: =596395.61 -> 596395.61 | K32: =0 -> 0 | L32: =0 -> 0 | M32: =0 -> 0 | N32: =0 -> 0 | O32: =0 -> 0 | P32: =0 -> 0 | Q32: =0 -> 0 | R32: =0 -> 0 | S32: =0 -> 0 | T32: =0 -> 0 | U32: =7724161.66 -> 7724161.66 | V32: =4459609.42 -> 4459609.42 | W32: =2781357.77 -> 2781357.77 | X32: =407324.86 -> 407324.86 | Y32: =22179976.42 -> 22179976.42 | Z32: =4711483.67 -> 4711483.67 | AA32: =1324301.45 -> 1324301.45 | AB32: =322826.43 -> 322826.43 | AC32: =1312068.24 -> 1312068.24 | AD32: =20565919.37 -> 20565919.37 | AE32: =0 -> 0 | AF32: =0 -> 0 | AG32: =0 -> 0 | AH32: =0 -> 0 | AI32: =0 -> 0 | AJ32: =46866782.9 -> 46866782.9 | AK32: =1994764.98 -> 1994764.98 | AL32: =23850226.65 -> 23850226.65 | AM32: =5743146.6 -> 5743146.6 | AN32: =9110498.98 -> 9110498.98 | AO32: =8570201.17 -> 8570201.17 | AP32: =2564569.96 -> 2564569.96 | AQ32: =544545.19 -> 544545.19 | AR32: =14310262.67 -> 14310262.67 | AS32: =3881770.61 -> 3881770.61 | AT32: =825824.38 -> 825824.38 | AU32: =4506629.93 -> 4506629.93 | AV32: =0 -> 0 | AW32: =0 -> 0 | AX32: =0 -> 0 | AY32: =0 -> 0 | AZ32: =0 -> 0 | BA32: =3215135.88 -> 3215135.88 | BB32: =929244.64 -> 929244.64 | BC32: =141681.07 -> 141681.07 | BD32: =68452.93 -> 68452.93 | BE32: =81702.44 -> 81702.44
A33: ='Wksh 1 - Market Experience'!E19 -> 478330 | B33: 2.9 | C33: Experience Period Member Months | D33: =SUM(E33:XFD33) -> 478330 | E33: =151621 -> 151621 | F33: =3127 -> 3127 | G33: =589 -> 589 | H33: =47 -> 47 | I33: =385 -> 385 | J33: =2718 -> 2718 | K33: =0 -> 0 | L33: =0 -> 0 | M33: =0 -> 0 | N33: =0 -> 0 | O33: =0 -> 0 | P33: =0 -> 0 | Q33: =0 -> 0 | R33: =0 -> 0 | S33: =0 -> 0 | T33: =0 -> 0 | U33: =18631 -> 18631 | V33: =9209 -> 9209 | W33: =4842 -> 4842 | X33: =701 -> 701 | Y33: =39822 -> 39822 | Z33: =10386 -> 10386 | AA33: =2267 -> 2267 | AB33: =531 -> 531 | AC33: =2374 -> 2374 | AD33: =36390 -> 36390 | AE33: =0 -> 0 | AF33: =0 -> 0 | AG33: =0 -> 0 | AH33: =0 -> 0 | AI33: =0 -> 0 | AJ33: =67914 -> 67914 | AK33: =3064 -> 3064 | AL33: =33757 -> 33757 | AM33: =8293 -> 8293 | AN33: =16954 -> 16954 | AO33: =13986 -> 13986 | AP33: =3634 -> 3634 | AQ33: =789 -> 789 | AR33: =26584 -> 26584 | AS33: =5505 -> 5505 | AT33: =1192 -> 1192 | AU33: =7168 -> 7168 | AV33: =0 -> 0 | AW33: =0 -> 0 | AX33: =0 -> 0 | AY33: =0 -> 0 | AZ33: =0 -> 0 | BA33: =3989 -> 3989 | BB33: =1460 -> 1460 | BC33: =224 -> 224 | BD33: =94 -> 94 | BE33: =83 -> 83
B34: 2.10 | C34: Current Enrollment | D34: =SUM(E34:XFD34) -> 29043 | E34: =0 -> 0 | F34: =309 -> 309 | G34: =62 -> 62 | H34: =15 -> 15 | I34: =49 -> 49 | J34: =252 -> 252 | K34: =338 -> 338 | L34: =102 -> 102 | M34: =150 -> 150 | N34: =11 -> 11 | O34: =541 -> 541 | P34: =127 -> 127 | Q34: =271 -> 271 | R34: =15 -> 15 | S34: =558 -> 558 | T34: =330 -> 330 | U34: =1229 -> 1229 | V34: =590 -> 590 | W34: =352 -> 352 | X34: =47 -> 47 | Y34: =2762 -> 2762 | Z34: =916 -> 916 | AA34: =244 -> 244 | AB34: =53 -> 53 | AC34: =266 -> 266 | AD34: =2785 -> 2785 | AE34: =0 -> 0 | AF34: =0 -> 0 | AG34: =0 -> 0 | AH34: =0 -> 0 | AI34: =0 -> 0 | AJ34: =5284 -> 5284 | AK34: =668 -> 668 | AL34: =2996 -> 2996 | AM34: =841 -> 841 | AN34: =1319 -> 1319 | AO34: =966 -> 966 | AP34: =318 -> 318 | AQ34: =73 -> 73 | AR34: =2297 -> 2297 | AS34: =565 -> 565 | AT34: =108 -> 108 | AU34: =635 -> 635 | AV34: =0 -> 0 | AW34: =0 -> 0 | AX34: =0 -> 0 | AY34: =0 -> 0 | AZ34: =0 -> 0 | BA34: =392 -> 392 | BB34: =147 -> 147 | BC34: =19 -> 19 | BD34: =36 -> 36 | BE34: =5 -> 5
B35: 2.11 | C35: Current Premium PMPM | D35: =SUMPRODUCT(E35:XFD35,E34:XFD34)/D34 -> 622.8850728 | E35: =0 -> 0 | F35: =191.24 -> 191.24 | G35: =244.17 -> 244.17 | H35: =214.7 -> 214.7 | I35: =211.53 -> 211.53 | J35: =222.56 -> 222.56 | K35: =430.05 -> 430.05 | L35: =542.42 -> 542.42 | M35: =665.42 -> 665.42 | N35: =601.36 -> 601.36 | O35: =393.07 -> 393.07 | P35: =466.81 -> 466.81 | Q35: =546.55 -> 546.55 | R35: =453.1 -> 453.1 | S35: =548.99 -> 548.99 | T35: =603.79 -> 603.79 | U35: =475.41 -> 475.41 | V35: =547.39 -> 547.39 | W35: =679.01 -> 679.01 | X35: =675.36 -> 675.36 | Y35: =623.84 -> 623.84 | Z35: =474.61 -> 474.61 | AA35: =637.58 -> 637.58 | AB35: =599.97 -> 599.97 | AC35: =544.98 -> 544.98 | AD35: =603.06 -> 603.06 | AE35: =0 -> 0 | AF35: =0 -> 0 | AG35: =0 -> 0 | AH35: =0 -> 0 | AI35: =0 -> 0 | AJ35: =730.39 -> 730.39 | AK35: =627.64 -> 627.64 | AL35: =700.87 -> 700.87 | AM35: =685.06 -> 685.06 | AN35: =574.39 -> 574.39 | AO35: =645.06 -> 645.06 | AP35: =759.45 -> 759.45 | AQ35: =666.46 -> 666.46 | AR35: =566.91 -> 566.91 | AS35: =773.59 -> 773.59 | AT35: =759.87 -> 759.87 | AU35: =655.77 -> 655.77 | AV35: =0 -> 0 | AW35: =0 -> 0 | AX35: =0 -> 0 | AY35: =0 -> 0 | AZ35: =0 -> 0 | BA35: =869.12 -> 869.12 | BB35: =684.83 -> 684.83 | BC35: =699.01 -> 699.01 | BD35: =1002.06 -> 1002.06 | BE35: =1080.91 -> 1080.91
B36: 2.12 | C36: Loss Ratio | D36: =D30/(D31+D32) -> 0.7593918986 | E36: 0.6766512046 | F36: 0.07484804014 | G36: 0.08248969847 | H36: -0.06890644852 | I36: -0.03949698998 | J36: 0.5193849525 | U36: 0.646713359 | V36: 0.6590015056 | W36: 0.4988239325 | X36: 0.3911375696 | Y36: 0.7570400967 | Z36: 0.5561182173 | AA36: 0.4210124102 | AB36: 0.6264123375 | AC36: 0.2813215376 | AD36: 0.7265084638 | AJ36: =AJ30/(AJ31+AJ32) -> 0.9419222986 | AK36: 0.8700848466 | AL36: 0.8161597487 | AM36: 0.9573127578 | AN36: 0.7654886916 | AO36: 0.7060708998 | AP36: 0.5541738114 | AQ36: 0.6538401495 | AR36: 0.7553939477 | AS36: 0.4968645774 | AT36: 0.5896966135 | AU36: 0.5896059182 | BA36: 0.8425891209 | BB36: 0.687219645 | BC36: 0.8910690777 | BD36: 0.4856896667 | BE36: 0.3703751755
C37: Per Member Per Month
B38: 2.13 | C38: Allowed Claims | D38: =D26/D33 -> 535.5966738 | E38: 403.7621964 | F38: 69.23519028 | G38: 85.23830221 | H38: -2.819361702 | I38: 29.77 | J38: 224.5239588 | U38: 278.478305 | V38: 287.7915224 | W38: 440.2036989 | X38: 308.069087 | Y38: 567.3892826 | Z38: 266.9847343 | AA38: 298.5005823 | AB38: 721.1834275 | AC38: 216.562043 | AD38: 469.005258 | AJ38: =AJ26/AJ33 -> 784.3329343 | AK38: 983.0001632 | AL38: 884.6953933 | AM38: 1159.100288 | AN38: 570.7411915 | AO38: 376.3890712 | AP38: 574.1841139 | AQ38: 833.8364259 | AR38: 430.7596265 | AS38: 386.7554641 | AT38: 369.3174413 | AU38: 455.614707 | BA38: 1836.107686 | BB38: 1076.4 | BC38: 728.3849554 | BD38: 575.0440426 | BE38: 600.1946988
B39: 2.14 | C39: Reinsurance | D39: =D27/D33 -> 0 | E39: 0 | F39: 0 | G39: 0 | H39: 0 | I39: 0 | J39: 0 | U39: 0 | V39: 0 | W39: 0 | X39: 0 | Y39: 0 | Z39: 0 | AA39: 0 | AB39: 0 | AC39: 0 | AD39: 0 | AJ39: =AJ27/AJ33 -> 0 | AK39: 0 | AL39: 0 | AM39: 0 | AN39: 0 | AO39: 0 | AP39: 0 | AQ39: 0 | AR39: 0 | AS39: 0 | AT39: 0 | AU39: 0 | BA39: 0 | BB39: 0 | BC39: 0 | BD39: 0 | BE39: 0
B40: 2.15 | C40: Member Cost Sharing | D40: =D28/D33 -> 127.3393819 | E40: 106.983454 | F40: 56.62251999 | G40: 68.37254669 | H40: 22.16340426 | I40: 33.37202597 | J40: 96.32449963 | U40: 97.71215501 | V40: 113.4291421 | W40: 130.3557435 | X40: 155.2500428 | Y40: 173.5116413 | Z40: 104.1260996 | AA40: 118.4753507 | AB40: 203.2215631 | AC40: 110.0524895 | AD40: 153.6249596 | AJ40: =AJ28/AJ33 -> 129.575526 | AK40: 229.0876567 | AL40: 192.9580611 | AM40: 195.1203244 | AN40: 105.8656636 | AO40: 83.34255398 | AP40: 97.72179417 | AQ40: 156.8715082 | AR40: 83.05858562 | AS40: 84.06174569 | AT40: 107.9512919 | AU40: 90.14594866 | BA40: 351.001627 | BB40: 246.8571712 | BC40: 228.0980804 | BD40: 205.3639362 | BE40: 268.9683133
B41: 2.16 | C41: Cost Sharing Reduction | D41: =D29/D33 -> 0 | E41: 0 | F41: 0 | G41: 0 | H41: 0 | I41: 0 | J41: 0 | U41: 0 | V41: 0 | W41: 0 | X41: 0 | Y41: 0 | Z41: 0 | AA41: 0 | AB41: 0 | AC41: 0 | AD41: 0 | AJ41: =AJ29/AJ33 -> 0 | AK41: 0 | AL41: 0 | AM41: 0 | AN41: 0 | AO41: 0 | AP41: 0 | AQ41: 0 | AR41: 0 | AS41: 0 | AT41: 0 | AU41: 0 | BA41: 0 | BB41: 0 | BC41: 0 | BD41: 0 | BE41: 0
B42: 2.17 | C42: Incurred Claims | D42: =D30/D33 -> 408.2572919 | E42: 296.7787424 | F42: 12.61267029 | G42: 16.86575552 | H42: -24.98276596 | I42: -3.602025974 | J42: 128.1994592 | U42: 180.76615 | V42: 174.3623803 | W42: 309.8479554 | X42: 152.8190442 | Y42: 393.8776413 | Z42: 162.8586347 | AA42: 180.0252316 | AB42: 517.9618644 | AC42: 106.5095535 | AD42: 315.3802984 | AJ42: =AJ30/AJ33 -> 654.7574083 | AK42: 753.9125065 | AL42: 691.7373321 | AM42: 963.9799638 | AN42: 464.8755279 | AO42: 293.0465172 | AP42: 476.4623198 | AQ42: 676.9649176 | AR42: 347.7010409 | AS42: 302.6937184 | AT42: 261.3661493 | AU42: 365.4687584 | BA42: 1485.106059 | BB42: 829.5428288 | BC42: 500.286875 | BD42: 369.6801064 | BE42: 331.2263855
B43: 2.18 | C43: Risk Adjustment Transfer Amount | D43: =D31/D33 -> -7.827743671 | E43: 0 | F43: -17.37370323 | G43: -30.36247878 | H43: 164.3380851 | I43: -114.0146234 | J43: 27.40493377 | U43: -135.0714299 | V43: -219.6807069 | W43: 46.73362454 | X43: -190.3584879 | Y43: -36.69159585 | Z43: -160.7889948 | AA43: -156.5639612 | AB43: 218.9110923 | AC43: -174.0781592 | AD43: -131.0489527 | AJ43: =AJ31/AJ33 -> 5.038740171 | AK43: 215.448639 | AL43: 141.0245499 | AM43: 314.4350669 | AN43: 69.92672939 | AO43: -197.7316238 | AP43: 154.0550908 | AQ43: 345.1962738 | AR43: -78.01258426 | AS43: -95.9277584 | AT43: -249.5843037 | AU43: -8.862518136 | BA43: 956.5502457 | BB43: 570.6310616 | BC43: -71.05910714 | BD43: 32.92202128 | BE43: -90.06710843
B44: 2.19 | C44: Premium | D44: =D32/D33 -> 545.4385513 | E44: 438.5992966 | F44: 185.8840646 | G44: 234.8214092 | H44: 198.2225532 | I44: 205.2121039 | J44: 219.4244334 | U44: 414.5865311 | V44: 484.2664155 | W44: 574.4233313 | X44: 581.0625678 | Y44: 556.9779624 | Z44: 453.6379424 | AA44: 584.1647331 | AB44: 607.9593785 | AC44: 552.6824937 | AD44: 565.1530467 | AJ44: =AJ32/AJ33 -> 690.0901567 | AK44: 651.0329569 | AL44: 706.5268433 | AM44: 692.5294345 | AN44: 537.3657532 | AO44: 612.7699964 | AP44: 705.715454 | AQ44: 690.1713435 | AR44: 538.3035913 | AS44: 705.1354423 | AT44: 692.8056879 | AU44: 628.715113 | BA44: 806.0004713 | BB44: 636.4689315 | BC44: 632.5047768 | BD44: 728.2226596 | BE44: 984.366747
C46: Section III: Plan Adjustment Factors
B47: 3.1 | C47: Plan ID (Standard Component ID) | E47: =E13 -> 36239KY0170000 | F47: 36239KY1140043 | G47: 36239KY1140056 | H47: 36239KY1140057 | I47: 36239KY1140067 | J47: 36239KY1140039 | K47: 36239KY1140077 | L47: 36239KY1140078 | M47: 36239KY1140079 | N47: 36239KY1140080 | O47: 36239KY1140072 | P47: 36239KY1140073 | Q47: 36239KY1140074 | R47: 36239KY1140075 | S47: 36239KY1140071 | T47: 36239KY1140076 | U47: 36239KY1140042 | V47: 36239KY1140053 | W47: 36239KY1140054 | X47: 36239KY1140055 | Y47: 36239KY1140034 | Z47: 36239KY1140038 | AA47: 36239KY1140051 | AB47: 36239KY1140052 | AC47: 36239KY1140065 | AD47: 36239KY1140001 | AE47: 36239KY1140090 | AF47: 36239KY1140085 | AG47: 36239KY1140086 | AH47: 36239KY1140087 | AI47: 36239KY1140088 | AJ47: 36239KY1140045 | AK47: =AK13 -> 36239KY1140064 | AL47: 36239KY1140005 | AM47: 36239KY1140035 | AN47: 36239KY1140046 | AO47: 36239KY1140060 | AP47: 36239KY1140061 | AQ47: 36239KY1140062 | AR47: 36239KY1140040 | AS47: 36239KY1140058 | AT47: 36239KY1140059 | AU47: 36239KY1140066 | AV47: 36239KY1140081 | AW47: 36239KY1140083 | AX47: 36239KY1140084 | AY47: 36239KY1140082 | AZ47: 36239KY1140089 | BA47: 36239KY1140009 | BB47: 36239KY1140044 | BC47: 36239KY1140068 | BD47: 36239KY1140069 | BE47: 36239KY1140070
B48: 3.2 | C48: Market Adjusted Index Rate | E48: ='Wksh 1 - Market Experience'!F46 -> 727.188664
B49: 3.3 | C49: AV and Cost Sharing Design of Plan | E49: 0 | F49: 0.6297 | G49: 0.6297 | H49: 0.6297 | I49: 0.6297 | J49: 0.6297 | K49: 0.6902 | L49: 0.6902 | M49: 0.6902 | N49: 0.6902 | O49: 0.6464 | P49: 0.6464 | Q49: 0.6464 | R49: 0.6464 | S49: 0.6464 | T49: 0.6902 | U49: 0.721 | V49: 0.721 | W49: 0.721 | X49: 0.721 | Y49: 0.7259 | Z49: 0.7009 | AA49: 0.7009 | AB49: 0.7009 | AC49: 0.7009 | AD49: 0.704 | AE49: 0.6927 | AF49: 0.6927 | AG49: 0.6927 | AH49: 0.6927 | AI49: 0.6927 | AJ49: 0.8127 | AK49: 0.8361 | AL49: 0.8238 | AM49: 0.8602 | AN49: 0.8461 | AO49: 0.8461 | AP49: 0.8461 | AQ49: 0.8461 | AR49: 0.8148 | AS49: 0.8148 | AT49: 0.8148 | AU49: 0.8148 | AV49: 0.8146 | AW49: 0.8146 | AX49: 0.8146 | AY49: 0.8146 | AZ49: 0.8146 | BA49: 1.0847 | BB49: 1.0847 | BC49: 1.0847 | BD49: 1.0847 | BE49: 1.0847
B50: 3.4 | C50: Provider Network Adjustment | E50: 0 | F50: 0.9285 | G50: 0.9044 | H50: 0.9012 | I50: 0.8744 | J50: 1.0625 | K50: 0.9285 | L50: 0.8744 | M50: 0.9044 | N50: 0.9012 | O50: 0.9285 | P50: 0.8744 | Q50: 0.9044 | R50: 0.9012 | S50: 1.0625 | T50: 1.0625 | U50: 0.9285 | V50: 0.8744 | W50: 0.9044 | X50: 0.9012 | Y50: 1.0625 | Z50: 0.9285 | AA50: 0.9044 | AB50: 0.9012 | AC50: 0.8744 | AD50: 1.0625 | AE50: 1.0625 | AF50: 0.9285 | AG50: 0.8744 | AH50: 0.9044 | AI50: 0.9012 | AJ50: 1.0625 | AK50: 1.0625 | AL50: 1.0625 | AM50: 1.0625 | AN50: 0.9285 | AO50: 0.8744 | AP50: 0.9044 | AQ50: 0.9012 | AR50: 0.9285 | AS50: 0.9044 | AT50: 0.9012 | AU50: 0.8744 | AV50: 0.9285 | AW50: 0.9044 | AX50: 0.9012 | AY50: 0.8744 | AZ50: 1.0625 | BA50: 1.0625 | BB50: 0.9285 | BC50: 0.8744 | BD50: 0.9044 | BE50: 0.9012
B51: 3.5 | C51: Benefits in Addition to EHB | E51: 0 | F51: 1 | G51: 1 | H51: 1 | I51: 1 | J51: 1 | K51: 1 | L51: 1 | M51: 1 | N51: 1 | O51: 1 | P51: 1 | Q51: 1 | R51: 1 | S51: 1 | T51: 1 | U51: 1 | V51: 1 | W51: 1 | X51: 1 | Y51: 1 | Z51: 1 | AA51: 1 | AB51: 1 | AC51: 1 | AD51: 1 | AE51: 1.0085 | AF51: 1.0104 | AG51: 1.0092 | AH51: 1.0088 | AI51: 1.0088 | AJ51: 1 | AK51: 1 | AL51: 1 | AM51: 1 | AN51: 1 | AO51: 1 | AP51: 1 | AQ51: 1 | AR51: 1 | AS51: 1 | AT51: 1 | AU51: 1 | AV51: 1.0089 | AW51: 1.0074 | AX51: 1.0074 | AY51: 1.0078 | AZ51: 1.0072 | BA51: 1 | BB51: 1 | BC51: 1 | BD51: 1 | BE51: 1
C52: Administrative Costs
B53: 3.6 | C53: Administrative Expense | E53: 0 | F53: 0.0762 | G53: 0.0762 | H53: 0.0762 | I53: 0.0762 | J53: 0.0762 | K53: 0.0762 | L53: 0.0762 | M53: 0.0762 | N53: 0.0762 | O53: 0.0762 | P53: 0.0762 | Q53: 0.0762 | R53: 0.0762 | S53: 0.0762 | T53: 0.0762 | U53: 0.0762 | V53: 0.0762 | W53: 0.0762 | X53: 0.0762 | Y53: 0.0762 | Z53: 0.0762 | AA53: 0.0762 | AB53: 0.0762 | AC53: 0.0762 | AD53: 0.0762 | AE53: 0.0751 | AF53: 0.0744 | AG53: 0.0749 | AH53: 0.075 | AI53: 0.075 | AJ53: 0.0762 | AK53: 0.0762 | AL53: 0.0762 | AM53: 0.0762 | AN53: 0.0762 | AO53: 0.0762 | AP53: 0.0762 | AQ53: 0.0762 | AR53: 0.0762 | AS53: 0.0762 | AT53: 0.0762 | AU53: 0.0762 | AV53: 0.0746 | AW53: 0.0752 | AX53: 0.0752 | AY53: 0.0751 | AZ53: 0.0753 | BA53: 0.0762 | BB53: 0.0762 | BC53: 0.0762 | BD53: 0.0762 | BE53: 0.0762
B54: 3.7 | C54: Taxes and Fees | E54: 0 | F54: 0.0296 | G54: 0.0296 | H54: 0.0296 | I54: 0.0296 | J54: 0.0296 | K54: 0.0296 | L54: 0.0296 | M54: 0.0296 | N54: 0.0296 | O54: 0.0296 | P54: 0.0296 | Q54: 0.0296 | R54: 0.0296 | S54: 0.0296 | T54: 0.0296 | U54: 0.0296 | V54: 0.0296 | W54: 0.0296 | X54: 0.0296 | Y54: 0.0296 | Z54: 0.0296 | AA54: 0.0296 | AB54: 0.0296 | AC54: 0.0296 | AD54: 0.0296 | AE54: 0.0292 | AF54: 0.0289 | AG54: 0.0291 | AH54: 0.0292 | AI54: 0.0292 | AJ54: 0.0296 | AK54: 0.0296 | AL54: 0.0296 | AM54: 0.0296 | AN54: 0.0296 | AO54: 0.0296 | AP54: 0.0296 | AQ54: 0.0296 | AR54: 0.0296 | AS54: 0.0296 | AT54: 0.0296 | AU54: 0.0296 | AV54: 0.029 | AW54: 0.0292 | AX54: 0.0292 | AY54: 0.0292 | AZ54: 0.0293 | BA54: 0.0296 | BB54: 0.0296 | BC54: 0.0296 | BD54: 0.0296 | BE54: 0.0296
B55: 3.8 | C55: Profit & Risk Load | E55: 0 | F55: 0.0511 | G55: 0.0511 | H55: 0.0511 | I55: 0.0511 | J55: 0.0511 | K55: 0.0511 | L55: 0.0511 | M55: 0.0511 | N55: 0.0511 | O55: 0.0511 | P55: 0.0511 | Q55: 0.0511 | R55: 0.0511 | S55: 0.0511 | T55: 0.0511 | U55: 0.0511 | V55: 0.0511 | W55: 0.0511 | X55: 0.0511 | Y55: 0.0511 | Z55: 0.0511 | AA55: 0.0511 | AB55: 0.0511 | AC55: 0.0511 | AD55: 0.0511 | AE55: 0.0504 | AF55: 0.0499 | AG55: 0.0502 | AH55: 0.0503 | AI55: 0.0503 | AJ55: 0.0511 | AK55: 0.0511 | AL55: 0.0511 | AM55: 0.0511 | AN55: 0.0511 | AO55: 0.0511 | AP55: 0.0511 | AQ55: 0.0511 | AR55: 0.0511 | AS55: 0.0511 | AT55: 0.0511 | AU55: 0.0511 | AV55: 0.05 | AW55: 0.0505 | AX55: 0.0505 | AY55: 0.0503 | AZ55: 0.0505 | BA55: 0.0511 | BB55: 0.0511 | BC55: 0.0511 | BD55: 0.0511 | BE55: 0.0511
B56: 3.9 | C56: Catastrophic Adjustment | E56: 0 | F56: 0.79 | G56: 0.79 | H56: 0.79 | I56: 0.79 | J56: 0.79 | K56: 1 | L56: 1 | M56: 1 | N56: 1 | O56: 1 | P56: 1 | Q56: 1 | R56: 1 | S56: 1 | T56: 1 | U56: 1 | V56: 1 | W56: 1 | X56: 1 | Y56: 1 | Z56: 1 | AA56: 1 | AB56: 1 | AC56: 1 | AD56: 1 | AE56: 1 | AF56: 1 | AG56: 1 | AH56: 1 | AI56: 1 | AJ56: 1 | AK56: 1 | AL56: 1 | AM56: 1 | AN56: 1 | AO56: 1 | AP56: 1 | AQ56: 1 | AR56: 1 | AS56: 1 | AT56: 1 | AU56: 1 | AV56: 1 | AW56: 1 | AX56: 1 | AY56: 1 | AZ56: 1 | BA56: 1 | BB56: 1 | BC56: 1 | BD56: 1 | BE56: 1
B57: 3.10 | C57: Plan Adjusted Index Rate | E57: =($E$48*PRODUCT(E49:E51)*E56)/(1-SUM(E53:E55)) -> 0 | F57: 398.3920868 | G57: 388.0514844 | H57: 386.6784584 | I57: 375.1793653 | J57: 455.8875522 | K57: 552.7450651 | L57: 520.5388098 | M57: 538.3981011 | N57: 536.49311 | O57: 517.6679369 | P57: 487.5054863 | Q57: 504.2314294 | R57: 502.4473288 | S57: 592.3771492 | T57: 632.5165661 | U57: 577.4111735 | V57: 543.7677222 | W57: 562.4239798 | X57: 560.433979 | Y57: 665.2329402 | Z57: 561.3141352 | AA57: 546.7447538 | AB57: 544.8102301 | AC57: 528.6085943 | AD57: 645.1632318 | AE57: 638.5372832 | AF57: 558.0674392 | AG57: 525.5475281 | AH57: 543.5560113 | AI57: 541.6327703 | AJ57: 744.7786342 | AK57: =($E$48*PRODUCT(AK49:AK51)*AK56)/(1-SUM(AK53:AK55)) -> 766.2229802 | AL57: 754.9509522 | AM57: 788.3088238 | AN57: 677.5972176 | AO57: 638.1163242 | AP57: 660.0096107 | AQ57: 657.6743268 | AR57: 652.5306854 | AS57: 635.5937015 | AT57: 633.3448074 | AU57: 614.5103191 | AV57: 655.6104711 | AW57: 638.6249834 | AX57: 636.3653638 | AY57: 617.4670189 | AZ57: 750.2929257 | BA57: 994.0462464 | BB57: 868.6794728 | BC57: 818.0649768 | BD57: 846.132165 | BE57: 843.1383316
B59: 3.11 | C59: Age Calibration Factor | D59: 0.5535872453 | E59: =IF(D59<>"", D59, "") -> 0.5535872453
B60: 3.12 | C60: Geographic Calibration Factor | D60: 1.001201442 | E60: =IF(D60<>"", D60, "") -> 1.001201442
B61: 3.13 | C61: Tobacco Calibration Factor | D61: 1 | E61: =IF(D61<>"", D61, "") -> 1
B62: 3.14 | C62: Calibrated Plan Adjusted Index Rate | E62: =E57*(PRODUCT($E$59:$E$61)) -> 0 | F62: 220.8097496 | G62: 215.0784465 | H62: 214.3174436 | I62: 207.9440442 | J62: 252.6767463 | K62: 306.3602503 | L62: 288.5098577 | M62: 298.4084118 | N62: 297.352566 | O62: 286.9186696 | P62: 270.2010605 | Q62: 279.4714537 | R62: 278.4826118 | S62: 328.3264259 | T62: 350.573792 | U62: 320.0314988 | V62: 301.3845369 | W62: 311.7248115 | X62: 310.6218489 | Y62: 368.7069192 | Z62: 311.1096775 | AA62: 303.0345636 | AB62: 301.9623493 | AC62: 292.9825547 | AD62: 357.5832362 | AE62: 353.9107886 | AF62: 309.3101886 | AG62: 291.2859515 | AH62: 301.2671956 | AI62: 300.2012348 | AJ62: 412.7953068 | AK62: =AK57*(PRODUCT($E$59:$E$61)) -> 424.680886 | AL62: 418.433338 | AM62: 436.9220167 | AN62: 375.559849 | AO62: 353.6774711 | AP62: 365.8118766 | AQ62: 364.51754 | AR62: 361.6666646 | AS62: 352.2793015 | AT62: 351.0328467 | AU62: 340.5937873 | AV62: 363.3736431 | AW62: 353.9593966 | AX62: 352.7069972 | AY62: 342.2325452 | AZ62: 415.8516159 | BA62: 550.9524663 | BB62: 481.4676376 | BC62: 453.4144344 | BD62: 468.9707393 | BE62: 467.3114001
C64: Section IV: Projected Plan Level Information
B65: 4.1 | C65: Plan ID (Standard Component ID) | D65: Total | E65: =E13 -> 36239KY0170000 | F65: 36239KY1140043 | G65: 36239KY1140056 | H65: 36239KY1140057 | I65: 36239KY1140067 | J65: 36239KY1140039 | K65: 36239KY1140077 | L65: 36239KY1140078 | M65: 36239KY1140079 | N65: 36239KY1140080 | O65: 36239KY1140072 | P65: 36239KY1140073 | Q65: 36239KY1140074 | R65: 36239KY1140075 | S65: 36239KY1140071 | T65: 36239KY1140076 | U65: 36239KY1140042 | V65: 36239KY1140053 | W65: 36239KY1140054 | X65: 36239KY1140055 | Y65: 36239KY1140034 | Z65: 36239KY1140038 | AA65: 36239KY1140051 | AB65: 36239KY1140052 | AC65: 36239KY1140065 | AD65: 36239KY1140001 | AE65: 36239KY1140090 | AF65: 36239KY1140085 | AG65: 36239KY1140086 | AH65: 36239KY1140087 | AI65: 36239KY1140088 | AJ65: 36239KY1140045 | AK65: =AK13 -> 36239KY1140064 | AL65: 36239KY1140005 | AM65: 36239KY1140035 | AN65: 36239KY1140046 | AO65: 36239KY1140060 | AP65: 36239KY1140061 | AQ65: 36239KY1140062 | AR65: 36239KY1140040 | AS65: 36239KY1140058 | AT65: 36239KY1140059 | AU65: 36239KY1140066 | AV65: 36239KY1140081 | AW65: 36239KY1140083 | AX65: 36239KY1140084 | AY65: 36239KY1140082 | AZ65: 36239KY1140089 | BA65: 36239KY1140009 | BB65: 36239KY1140044 | BC65: 36239KY1140068 | BD65: 36239KY1140069 | BE65: 36239KY1140070
B66: 4.2 | C66: Allowed Claims | D66: =SUM(E66:XFD66) -> 365366030.8 | E66: =0 -> 0 | F66: =1349606.54 -> 1349606.54 | G66: =363809.66 -> 363809.66 | H66: =48754.12 -> 48754.12 | I66: =215255.17 -> 215255.17 | J66: =1458693.29 -> 1458693.29 | K66: =2365469.16 -> 2365469.16 | L66: =669372.52 -> 669372.52 | M66: =1322615.25 -> 1322615.25 | N66: =52184.33 -> 52184.33 | O66: =3086358.04 -> 3086358.04 | P66: =812341.33 -> 812341.33 | Q66: =2207510.86 -> 2207510.86 | R66: =143945.79 -> 143945.79 | S66: =4658342.8 -> 4658342.8 | T66: =2654249.31 -> 2654249.31 | U66: =12122162.14 -> 12122162.14 | V66: =6453282.13 -> 6453282.13 | W66: =4164553.42 -> 4164553.42 | X66: =542236.75 -> 542236.75 | Y66: =32378472.99 -> 32378472.99 | Z66: =7813389.9 -> 7813389.9 | AA66: =2614842.04 -> 2614842.04 | AB66: =440595.17 -> 440595.17 | AC66: =2301182.92 -> 2301182.92 | AD66: =31891256.86 -> 31891256.86 | AE66: =533597.88 -> 533597.88 | AF66: =1562757.29 -> 1562757.29 | AG66: =460259.94 -> 460259.94 | AH66: =522994.95 -> 522994.95 | AI66: =88123.51 -> 88123.51 | AJ66: =76435361.39 -> 76435361.39 | AK66: =7824802.15 -> 7824802.15 | AL66: =43745455.09 -> 43745455.09 | AM66: =11779824.5 -> 11779824.5 | AN66: =15508280.93 -> 15508280.93 | AO66: =13030889.66 -> 13030889.66 | AP66: =4967035.66 -> 4967035.66 | AQ66: =1001376.36 -> 1001376.36 | AR66: =26061402.91 -> 26061402.91 | AS66: =7974421.04 -> 7974421.04 | AT66: =1484345.82 -> 1484345.82 | AU66: =7946033.99 -> 7946033.99 | AV66: =3088269.52 -> 3088269.52 | AW66: =989119.61 -> 989119.61 | AX66: =199410.89 -> 199410.89 | AY66: =2594929.74 -> 2594929.74 | AZ66: =8712621.37 -> 8712621.37 | BA66: =4675721.42 -> 4675721.42 | BB66: =1415799.1 -> 1415799.1 | BC66: =147900.61 -> 147900.61 | BD66: =416619.26 -> 416619.26 | BE66: =68193.74 -> 68193.74
B67: 4.3 | C67: Reinsurance | D67: =SUM(E67:XFD67) -> 0 | E67: =0 -> 0 | F67: =0 -> 0 | G67: =0 -> 0 | H67: =0 -> 0 | I67: =0 -> 0 | J67: =0 -> 0 | K67: =0 -> 0 | L67: =0 -> 0 | M67: =0 -> 0 | N67: =0 -> 0 | O67: =0 -> 0 | P67: =0 -> 0 | Q67: =0 -> 0 | R67: =0 -> 0 | S67: =0 -> 0 | T67: =0 -> 0 | U67: =0 -> 0 | V67: =0 -> 0 | W67: =0 -> 0 | X67: =0 -> 0 | Y67: =0 -> 0 | Z67: =0 -> 0 | AA67: =0 -> 0 | AB67: =0 -> 0 | AC67: =0 -> 0 | AD67: =0 -> 0 | AE67: =0 -> 0 | AF67: =0 -> 0 | AG67: =0 -> 0 | AH67: =0 -> 0 | AI67: =0 -> 0 | AJ67: =0 -> 0 | AK67: =0 -> 0 | AL67: =0 -> 0 | AM67: =0 -> 0 | AN67: =0 -> 0 | AO67: =0 -> 0 | AP67: =0 -> 0 | AQ67: =0 -> 0 | AR67: =0 -> 0 | AS67: =0 -> 0 | AT67: =0 -> 0 | AU67: =0 -> 0 | AV67: =0 -> 0 | AW67: =0 -> 0 | AX67: =0 -> 0 | AY67: =0 -> 0 | AZ67: =0 -> 0 | BA67: =0 -> 0 | BB67: =0 -> 0 | BC67: =0 -> 0 | BD67: =0 -> 0 | BE67: =0 -> 0
B68: 4.4 | C68: Member Cost Sharing | D68: =SUM(E68:XFD68) -> 78958399.46 | E68: =0 -> 0 | F68: =447820.99 -> 447820.99 | G68: =120717.85 -> 120717.85 | H68: =16177.39 -> 16177.39 | I68: =71425.1 -> 71425.1 | J68: =484017.71 -> 484017.71 | K68: =729905.93 -> 729905.93 | L68: =206546.33 -> 206546.33 | M68: =408115.54 -> 408115.54 | N68: =16102.37 -> 16102.37 | O68: =1057639.77 -> 1057639.77 | P68: =278374.86 -> 278374.86 | Q68: =756474.54 -> 756474.54 | R68: =49327.65 -> 49327.65 | S68: =1596330.87 -> 1596330.87 | T68: =819013.98 -> 819013.98 | U68: =3527865.25 -> 3527865.25 | V68: =1878073.36 -> 1878073.36 | W68: =1211993.63 -> 1211993.63 | X68: =157805.03 -> 157805.03 | Y68: =9308911.42 -> 9308911.42 | Z68: =2355199.66 -> 2355199.66 | AA68: =788195.03 -> 788195.03 | AB68: =132809.14 -> 132809.14 | AC68: =693648.38 -> 693648.38 | AD68: =9682140.04 -> 9682140.04 | AE68: =163073.03 -> 163073.03 | AF68: =477594.8 -> 477594.8 | AG68: =140660.2 -> 140660.2 | AH68: =159832.67 -> 159832.67 | AI68: =26931.46 -> 26931.46 | AJ68: =13388514.52 -> 13388514.52 | AK68: =1282857.3 -> 1282857.3 | AL68: =7667397.09 -> 7667397.09 | AM68: =1747792.27 -> 1747792.27 | AN68: =2375012.63 -> 2375012.63 | AO68: =1995613.03 -> 1995613.03 | AP68: =760675.7 -> 760675.7 | AQ68: =153355.59 -> 153355.59 | AR68: =4554352.86 -> 4554352.86 | AS68: =1393567.62 -> 1393567.62 | AT68: =259396.42 -> 259396.42 | AU68: =1388606.85 -> 1388606.85 | AV68: =546590.99 -> 546590.99 | AW68: =175063.69 -> 175063.69 | AX68: =35293.62 -> 35293.62 | AY68: =459275.08 -> 459275.08 | AZ68: =1542041.7 -> 1542041.7 | BA68: =1022356.73 -> 1022356.73 | BB68: =309567.58 -> 309567.58 | BC68: =32338.79 -> 32338.79 | BD68: =91094.71 -> 91094.71 | BE68: =14910.71 -> 14910.71
B69: 4.5 | C69: Cost Sharing Reduction | D69: =SUM(E69:XFD69) -> 0 | E69: =0 -> 0 | F69: =0 -> 0 | G69: =0 -> 0 | H69: =0 -> 0 | I69: =0 -> 0 | J69: =0 -> 0 | K69: =0 -> 0 | L69: =0 -> 0 | M69: =0 -> 0 | N69: =0 -> 0 | O69: =0 -> 0 | P69: =0 -> 0 | Q69: =0 -> 0 | R69: =0 -> 0 | S69: =0 -> 0 | T69: =0 -> 0 | U69: =0 -> 0 | V69: =0 -> 0 | W69: =0 -> 0 | X69: =0 -> 0 | Y69: =0 -> 0 | Z69: =0 -> 0 | AA69: =0 -> 0 | AB69: =0 -> 0 | AC69: =0 -> 0 | AD69: =0 -> 0 | AE69: =0 -> 0 | AF69: =0 -> 0 | AG69: =0 -> 0 | AH69: =0 -> 0 | AI69: =0 -> 0 | AJ69: =0 -> 0 | AK69: =0 -> 0 | AL69: =0 -> 0 | AM69: =0 -> 0 | AN69: =0 -> 0 | AO69: =0 -> 0 | AP69: =0 -> 0 | AQ69: =0 -> 0 | AR69: =0 -> 0 | AS69: =0 -> 0 | AT69: =0 -> 0 | AU69: =0 -> 0 | AV69: =0 -> 0 | AW69: =0 -> 0 | AX69: =0 -> 0 | AY69: =0 -> 0 | AZ69: =0 -> 0 | BA69: =0 -> 0 | BB69: =0 -> 0 | BC69: =0 -> 0 | BD69: =0 -> 0 | BE69: =0 -> 0
B70: 4.6 | C70: Incurred Claims | D70: =D66-D67-D68-D69 -> 286407631.4 | E70: 0 | F70: 901785.55 | G70: 243091.81 | H70: 32576.73 | I70: 143830.07 | J70: 974675.58 | K70: 1635563.23 | L70: 462826.19 | M70: 914499.71 | N70: 36081.96 | O70: 2028718.27 | P70: 533966.47 | Q70: 1451036.32 | R70: 94618.14 | S70: 3062011.93 | T70: 1835235.33 | U70: 8594296.89 | V70: 4575208.77 | W70: 2952559.79 | X70: 384431.72 | Y70: 23069561.57 | Z70: 5458190.24 | AA70: 1826647.01 | AB70: 307786.03 | AC70: 1607534.54 | AD70: 22209116.82 | AE70: 370524.85 | AF70: 1085162.49 | AG70: 319599.74 | AH70: 363162.28 | AI70: 61192.05 | AJ70: =AJ66-AJ67-AJ68-AJ69 -> 63046846.87 | AK70: 6541944.85 | AL70: 36078058 | AM70: 10032032.23 | AN70: 13133268.3 | AO70: 11035276.63 | AP70: 4206359.96 | AQ70: 848020.77 | AR70: 21507050.05 | AS70: 6580853.42 | AT70: 1224949.4 | AU70: 6557427.14 | AV70: 2541678.53 | AW70: 814055.92 | AX70: 164117.27 | AY70: 2135654.66 | AZ70: 7170579.67 | BA70: 3653364.69 | BB70: 1106231.52 | BC70: 115561.82 | BD70: 325524.55 | BE70: 53283.03
B71: 4.7 | C71: Risk Adjustment Transfer Amount | D71: =SUM(E71:XFD71) -> -5337978.73 | E71: =0 -> 0 | F71: =-18174.53 -> -18174.53 | G71: =-4011.81 -> -4011.81 | H71: =-534.89 -> -534.89 | I71: =-2399.75 -> -2399.75 | J71: =-18247.11 -> -18247.11 | K71: =-32963.04 -> -32963.04 | L71: =-7722.09 -> -7722.09 | M71: =-15092.22 -> -15092.22 | N71: =-592.45 -> -592.45 | O71: =-40886.66 -> -40886.66 | P71: =-8909.03 -> -8909.03 | Q71: =-23946.82 -> -23946.82 | R71: =-1553.59 -> -1553.59 | S71: =-57324.57 -> -57324.57 | T71: =-34357.83 -> -34357.83 | U71: =-173208.92 -> -173208.92 | V71: =-76335.68 -> -76335.68 | W71: =-48726.84 -> -48726.84 | X71: =-6312.19 -> -6312.19 | Y71: =-431890.1 -> -431890.1 | Z71: =-110004.02 -> -110004.02 | AA71: =-30145.62 -> -30145.62 | AB71: =-5053.7 -> -5053.7 | AC71: =-26821.12 -> -26821.12 | AD71: =-415781.53 -> -415781.53 | AE71: =-6936.67 -> -6936.67 | AF71: =-21870.3 -> -21870.3 | AG71: =-5332.4 -> -5332.4 | AH71: =-5993.36 -> -5993.36 | AI71: =-1004.74 -> -1004.74 | AJ71: =-1180313.24 -> -1180313.24 | AK71: =-122473.12 -> -122473.12 | AL71: =-675424.89 -> -675424.89 | AM71: =-187811.78 -> -187811.78 | AN71: =-264687.06 -> -264687.06 | AO71: =-184119.55 -> -184119.55 | AP71: =-69418.62 -> -69418.62 | AQ71: =-13924.1 -> -13924.1 | AR71: =-433451.73 -> -433451.73 | AS71: =-108605.49 -> -108605.49 | AT71: =-20113.09 -> -20113.09 | AU71: =-109408.27 -> -109408.27 | AV71: =-51224.83 -> -51224.83 | AW71: =-13434.57 -> -13434.57 | AX71: =-2694.73 -> -2694.73 | AY71: =-35632.62 -> -35632.62 | AZ71: =-134241.93 -> -134241.93 | BA71: =-68395.41 -> -68395.41 | BB71: =-22294.92 -> -22294.92 | BC71: =-1928.11 -> -1928.11 | BD71: =-5372.21 -> -5372.21 | BE71: =-874.88 -> -874.88
B72: 4.8 | C72: Premium | D72: =SUM(E72:XFD72) -> 346049142 | E72: =0 -> 0 | F72: =1091293.37 -> 1091293.37 | G72: =292971.21 -> 292971.21 | H72: =39413.19 -> 39413.19 | I72: =173580.46 -> 173580.46 | J72: =1177683.2 -> 1177683.2 | K72: =1979262.48 -> 1979262.48 | L72: =558375.06 -> 558375.06 | M72: =1102562.61 -> 1102562.61 | N72: =43755.21 -> 43755.21 | O72: =2454922.15 -> 2454922.15 | P72: =644162.61 -> 644162.61 | Q72: =1749783.2 -> 1749783.2 | R72: =113829.14 -> 113829.14 | S72: =3699907.1 -> 3699907.1 | T72: =2217457.67 -> 2217457.67 | U72: =10399218.92 -> 10399218.92 | V72: =5517231.81 -> 5517231.81 | W72: =3559625.67 -> 3559625.67 | X72: =463392.49 -> 463392.49 | Y72: =27875381.76 -> 27875381.76 | Z72: =6604827.81 -> 6604827.81 | AA72: =2202329.79 -> 2202329.79 | AB72: =370895.17 -> 370895.17 | AC72: =1938627.14 -> 1938627.14 | AD72: =26836133.03 -> 26836133.03 | AE72: =447566.48 -> 447566.48 | AF72: =1313233 -> 1313233 | AG72: =385542.64 -> 385542.64 | AH72: =437975.64 -> 437975.64 | AI72: =73616.31 -> 73616.31 | AJ72: =76181556.38 -> 76181556.38 | AK72: =7904730.72 -> 7904730.72 | AL72: =43594653.83 -> 43594653.83 | AM72: =12122246.93 -> 12122246.93 | AN72: =15891889.95 -> 15891889.95 | AO72: =13307925.36 -> 13307925.36 | AP72: =5071900.51 -> 5071900.51 | AQ72: =1022005.07 -> 1022005.07 | AR72: =26024237.15 -> 26024237.15 | AS72: =7934723.42 -> 7934723.42 | AT72: =1476983.63 -> 1476983.63 | AU72: =7907771.49 -> 7907771.49 | AV72: =3075675.42 -> 3075675.42 | AW72: =981707.74 -> 981707.74 | AX72: =197500.1 -> 197500.1 | AY72: =2575479.87 -> 2575479.87 | AZ72: =8664217.98 -> 8664217.98 | BA72: =4414141.05 -> 4414141.05 | BB72: =1338803.69 -> 1338803.69 | BC72: =139561.11 -> 139561.11 | BD72: =392886.93 -> 392886.93 | BE72: =63987.34 -> 63987.34
B73: 4.9 | C73: Projected Member Months | D73: =SUM(E73:XFD73) -> 511794 | E73: =0 -> 0 | F73: =2958 -> 2958 | G73: =670 -> 670 | H73: =90 -> 90 | I73: =415 -> 415 | J73: =2595 -> 2595 | K73: =3866 -> 3866 | L73: =962 -> 962 | M73: =1817 -> 1817 | N73: =72 -> 72 | O73: =5120 -> 5120 | P73: =1185 -> 1185 | Q73: =3079 -> 3079 | R73: =200 -> 200 | S73: =6273 -> 6273 | T73: =3521 -> 3521 | U73: =19446 -> 19446 | V73: =9100 -> 9100 | W73: =5616 -> 5616 | X73: =730 -> 730 | Y73: =42091 -> 42091 | Z73: =12704 -> 12704 | AA73: =3574 -> 3574 | AB73: =601 -> 601 | AC73: =3289 -> 3289 | AD73: =41781 -> 41781 | AE73: =704 -> 704 | AF73: =2541 -> 2541 | AG73: =658 -> 658 | AH73: =715 -> 715 | AI73: =120 -> 120 | AJ73: =102735 -> 102735 | AK73: =10362 -> 10362 | AL73: =57997 -> 57997 | AM73: =15445 -> 15445 | AN73: =25324 -> 25324 | AO73: =18705 -> 18705 | AP73: =6819 -> 6819 | AQ73: =1372 -> 1372 | AR73: =43064 -> 43064 | AS73: =11078 -> 11078 | AT73: =2059 -> 2059 | AU73: =11542 -> 11542 | AV73: =5065 -> 5065 | AW73: =1364 -> 1364 | AX73: =274 -> 274 | AY73: =3741 -> 3741 | AZ73: =11599 -> 11599 | BA73: =4460 -> 4460 | BB73: =1664 -> 1664 | BC73: =153 -> 153 | BD73: =412 -> 412 | BE73: =67 -> 67
B74: 4.10 | C74: Loss Ratio | D74: =D70/(D71+D72) -> 0.840617104 | F74: 0.8403408051 | G74: 0.8412663163 | H74: 0.8379154953 | I74: 0.8402235859 | J74: 0.8406462317 | K74: 0.8403451167 | L74: 0.8405043016 | M74: 0.8409421704 | N74: 0.8359511764 | O74: 0.8403846084 | P74: 0.8405564121 | Q74: 0.84077282 | R74: 0.8427314763 | S74: 0.8406156634 | T74: 0.8406557027 | U74: 0.8404350172 | V74: 0.8408925039 | W74: 0.8409697724 | X74: 0.8410594812 | Y74: 0.840620496 | Z74: 0.8403908122 | AA74: 0.8409263981 | AB74: 0.8413098439 | AC74: 0.8408460499 | AD74: 0.8406064098 | AE74: 0.8408982815 | AF74: 0.8403235512 | AG74: 0.8405868816 | AH74: 0.8406879097 | AI74: 0.8427313994 | AJ74: =AJ70/(AJ71+AJ72) -> 0.8406106916 | AK74: 0.8406230154 | AL74: 0.8406035917 | AM74: 0.8405954789 | AN74: 0.8404106859 | AO74: 0.8408594877 | AP74: 0.8408546103 | AQ74: 0.8412228732 | AR74: 0.8404216478 | AS74: 0.8408834979 | AT74: 0.840808683 | AU74: 0.8408722388 | AV74: 0.8403769393 | AW74: 0.8407296053 | AX74: 0.842467895 | AY74: 0.8408594887 | AZ74: 0.8406330367 | BA74: 0.8406761446 | BB74: 0.8402766052 | BC74: 0.8396374416 | BD74: 0.8400314445 | BE74: 0.8442553182
C75: Per Member Per Month
B76: 4.11 | C76: Allowed Claims | D76: =D66/D73 -> 713.8927592 | F76: 456.2564368 | G76: 542.9994925 | H76: 541.7124444 | I76: 518.6871566 | J76: 562.1168748 | K76: 611.8647594 | L76: 695.8134304 | M76: 727.91153 | N76: 724.7823611 | O76: 602.8043047 | P76: 685.5201097 | Q76: 716.9570835 | R76: 719.72895 | S76: 742.6020724 | T76: 753.8339421 | U76: 623.3756114 | V76: 709.1518824 | W76: 741.5515349 | X76: 742.7900685 | Y76: 769.2493167 | Z76: 615.0338397 | AA76: 731.6289983 | AB76: 733.1034443 | AC76: 699.6603588 | AD76: 763.2956813 | AE76: 757.9515341 | AF76: 615.0166431 | AG76: 699.4831915 | AH76: 731.4614685 | AI76: 734.3625833 | AJ76: =AJ66/AJ73 -> 744.0050751 | AK76: 755.1440021 | AL76: 754.2709983 | AM76: 762.6950146 | AN76: 612.3946031 | AO76: 696.6527485 | AP76: 728.4111541 | AQ76: 729.8661516 | AR76: 605.1784068 | AS76: 719.8430258 | AT76: 720.9061778 | AU76: 688.445156 | AV76: 609.7274472 | AW76: 725.1610044 | AX76: 727.7769708 | AY76: 693.6460144 | AZ76: 751.1528037 | BA76: 1048.368031 | BB76: 850.8408053 | BC76: 966.6706536 | BD76: 1011.211796 | BE76: 1017.817015
B77: 4.12 | C77: Reinsurance | D77: =D67/D73 -> 0 | F77: 0 | G77: 0 | H77: 0 | I77: 0 | J77: 0 | K77: 0 | L77: 0 | M77: 0 | N77: 0 | O77: 0 | P77: 0 | Q77: 0 | R77: 0 | S77: 0 | T77: 0 | U77: 0 | V77: 0 | W77: 0 | X77: 0 | Y77: 0 | Z77: 0 | AA77: 0 | AB77: 0 | AC77: 0 | AD77: 0 | AE77: 0 | AF77: 0 | AG77: 0 | AH77: 0 | AI77: 0 | AJ77: =AJ67/AJ73 -> 0 | AK77: 0 | AL77: 0 | AM77: 0 | AN77: 0 | AO77: 0 | AP77: 0 | AQ77: 0 | AR77: 0 | AS77: 0 | AT77: 0 | AU77: 0 | AV77: 0 | AW77: 0 | AX77: 0 | AY77: 0 | AZ77: 0 | BA77: 0 | BB77: 0 | BC77: 0 | BD77: 0 | BE77: 0
B78: 4.13 | C78: Member Cost Sharing | D78: =D68/D73 -> 154.2776966 | F78: 151.3931677 | G78: 180.1758955 | H78: 179.7487778 | I78: 172.1086747 | J78: 186.5193487 | K78: 188.801327 | L78: 214.7051247 | M78: 224.6095432 | N78: 223.6440278 | O78: 206.5702676 | P78: 234.9154937 | Q78: 245.6883858 | R78: 246.63825 | S78: 254.4764658 | T78: 232.6083442 | U78: 181.4185565 | V78: 206.3816879 | W78: 215.8108316 | X78: 216.171274 | Y78: 221.1615647 | Z78: 185.3904014 | AA78: 220.5358226 | AB78: 220.9802662 | AC78: 210.899477 | AD78: 231.7354788 | AE78: 231.6378267 | AF78: 187.9554506 | AG78: 213.7693009 | AH78: 223.5421958 | AI78: 224.4288333 | AJ78: =AJ68/AJ73 -> 130.3208694 | AK78: 123.8040243 | AL78: 132.2033397 | AM78: 113.1623354 | AN78: 93.78505094 | AO78: 106.6887479 | AP78: 111.552383 | AQ78: 111.7752114 | AR78: 105.7577759 | AS78: 125.7959578 | AT78: 125.9817484 | AU78: 120.3090322 | AV78: 107.9152991 | AW78: 128.3458138 | AX78: 128.8088321 | AY78: 122.7679979 | AZ78: 132.9460902 | BA78: 229.2279664 | BB78: 186.0382091 | BC78: 211.3646405 | BD78: 221.103665 | BE78: 222.5479104
B79: 4.14 | C79: Cost Sharing Reduction | D79: =D69/D73 -> 0 | F79: 0 | G79: 0 | H79: 0 | I79: 0 | J79: 0 | K79: 0 | L79: 0 | M79: 0 | N79: 0 | O79: 0 | P79: 0 | Q79: 0 | R79: 0 | S79: 0 | T79: 0 | U79: 0 | V79: 0 | W79: 0 | X79: 0 | Y79: 0 | Z79: 0 | AA79: 0 | AB79: 0 | AC79: 0 | AD79: 0 | AE79: 0 | AF79: 0 | AG79: 0 | AH79: 0 | AI79: 0 | AJ79: =AJ69/AJ73 -> 0 | AK79: 0 | AL79: 0 | AM79: 0 | AN79: 0 | AO79: 0 | AP79: 0 | AQ79: 0 | AR79: 0 | AS79: 0 | AT79: 0 | AU79: 0 | AV79: 0 | AW79: 0 | AX79: 0 | AY79: 0 | AZ79: 0 | BA79: 0 | BB79: 0 | BC79: 0 | BD79: 0 | BE79: 0
B80: 4.15 | C80: Incurred Claims | D80: =D70/D73 -> 559.6150626 | F80: 304.8632691 | G80: 362.823597 | H80: 361.9636667 | I80: 346.5784819 | J80: 375.597526 | K80: 423.0634325 | L80: 481.1083056 | M80: 503.3019868 | N80: 501.1383333 | O80: 396.2340371 | P80: 450.604616 | Q80: 471.2686976 | R80: 473.0907 | S80: 488.1256066 | T80: 521.2255978 | U80: 441.9570549 | V80: 502.7701945 | W80: 525.7407033 | X80: 526.6187945 | Y80: 548.087752 | Z80: 429.6434383 | AA80: 511.0931757 | AB80: 512.123178 | AC80: 488.7608817 | AD80: 531.5602025 | AE80: 526.3137074 | AF80: 427.0611924 | AG80: 485.7138906 | AH80: 507.9192727 | AI80: 509.93375 | AJ80: =AJ70/AJ73 -> 613.6842057 | AK80: 631.3399778 | AL80: 622.0676587 | AM80: 649.5326792 | AN80: 518.6095522 | AO80: 589.9640005 | AP80: 616.8587711 | AQ80: 618.0909402 | AR80: 499.4206309 | AS80: 594.0470681 | AT80: 594.9244293 | AU80: 568.1361237 | AV80: 501.8121481 | AW80: 596.8151906 | AX80: 598.9681387 | AY80: 570.8780166 | AZ80: 618.2067135 | BA80: 819.140065 | BB80: 664.8025962 | BC80: 755.3060131 | BD80: 790.1081311 | BE80: 795.2691045
B81: 4.16 | C81: Risk Adjustment Transfer Amount | D81: =D71/D73 -> -10.42993613 | F81: -6.144195402 | G81: -5.987776119 | H81: -5.943222222 | I81: -5.78253012 | J81: -7.031641618 | K81: -8.526394206 | L81: -8.027120582 | M81: -8.306119978 | N81: -8.228472222 | O81: -7.985675781 | P81: -7.518168776 | Q81: -7.77746671 | R81: -7.76795 | S81: -9.138302248 | T81: -9.757975007 | U81: -8.90717474 | V81: -8.388536264 | W81: -8.676431624 | X81: -8.646835616 | Y81: -10.26086574 | Z81: -8.659006612 | AA81: -8.434700616 | AB81: -8.408818636 | AC81: -8.15479477 | AD81: -9.951449941 | AE81: -9.853224432 | AF81: -8.606965762 | AG81: -8.103951368 | AH81: -8.382321678 | AI81: -8.372833333 | AJ81: =AJ71/AJ73 -> -11.48891069 | AK81: -11.81944798 | AL81: -11.6458591 | AM81: -12.16003755 | AN81: -10.45202417 | AO81: -9.843333333 | AP81: -10.18017598 | AQ81: -10.14876093 | AR81: -10.06529189 | AS81: -9.803709153 | AT81: -9.768377853 | AU81: -9.479143129 | AV81: -10.11349062 | AW81: -9.849391496 | AX81: -9.834781022 | AY81: -9.52489174 | AZ81: -11.57357789 | BA81: -15.33529372 | BB81: -13.39838942 | BC81: -12.60202614 | BD81: -13.03934466 | BE81: -13.05791045
B82: 4.17 | C82: Premium | D82: =D72/D73 -> 676.1492749 | F82: 368.9294692 | G82: 437.2704627 | H82: 437.9243333 | I82: 418.2661687 | J82: 453.8278227 | K82: 511.9664977 | L82: 580.4314553 | M82: 606.803858 | N82: 607.71125 | O82: 479.4769824 | P82: 543.5971392 | Q82: 568.2959402 | R82: 569.1457 | S82: 589.8146182 | T82: 629.7806504 | U82: 534.7741911 | V82: 606.2892099 | W82: 633.8364797 | X82: 634.7842329 | Y82: 662.264659 | Z82: 519.9014334 | AA82: 616.208671 | AB82: 617.1300666 | AC82: 589.4275281 | AD82: 642.3047086 | AE82: 635.7478409 | AF82: 516.8173947 | AG82: 585.9310638 | AH82: 612.5533427 | AI82: 613.46925 | AJ82: =AJ72/AJ73 -> 741.5345927 | AK82: 762.8576259 | AL82: 751.6708421 | AM82: 784.8654535 | AN82: 627.5426453 | AO82: 711.4635317 | AP82: 743.7894867 | AQ82: 744.9016545 | AR82: 604.3153713 | AS82: 716.2595613 | AT82: 717.3305634 | AU82: 685.1300892 | AV82: 607.2409516 | AW82: 719.7270821 | AX82: 720.8032847 | AY82: 688.4469046 | AZ82: 746.9797379 | BA82: 989.7177242 | BB82: 804.5695252 | BC82: 912.1641176 | BD82: 953.6090534 | BE82: 955.0349254

Sheet Wksh 3 - Rating Areas
A1: Rating Area Data Collection [assistive technology users, please reference cell A2 for instructions] | C1: Specify the total number of Rating Areas in your State by selecting the Create Rating Areas button or Ctrl + Shift + R.
A2: Press TAB and directional arrow keys to read through the document. If macros are disabled, press and hold the ALT key and press the F, then I, and then N key. After that, select the Enable All Content option by pressing enter. (note that you can also press the C key to select "Enable All Content") Instructions can be found in cells C1 through C4. If screen reader fails to announce a cell after performing a dropdown selection, please press F2 and then ESC to force the screen reader to resume. | C2: Select only the Rating Areas you are offering plans within and add a factor for each area.
C3: To validate, select the Validate button or Ctrl + Shift + I.
C4: To finalize, select the Finalize button or Ctrl + Shift + F.
A5: Rating Area | B5: Rating Factor
A6: Rating Area 1 | B6: 0.9727
A7: Rating Area 2 | B7: 0.963
A8: Rating Area 3 | B8: 0.9264
A9: Rating Area 4 | B9: 1.1136
A10: Rating Area 5 | B10: 0.9213
A11: Rating Area 6 | B11: 1.1256
A12: Rating Area 7 | B12: 0.9341
A13: Rating Area 8 | B13: 1.1386

Sheet PlanTemplate (hidden)
A1: REBUILD | C1: Product-Plan Data Collection
C3: Company Legal Name: | D3: =IF('Wksh 1 - Market Experience'!C3<>"", 'Wksh 1 - Market Experience'!C3,"") -> Anthem Health Plans of Kentucky, Inc. | N3: State: | O3: =IF('Wksh 1 - Market Experience'!E4="","",'Wksh 1 - Market Experience'!E4) -> KY
C4: HIOS Issuer ID: | D4: =IF('Wksh 1 - Market Experience'!C4<>"", 'Wksh 1 - Market Experience'!C4,"") -> 36239 | N4: Market: | O4: =IF('Wksh 1 - Market Experience'!E5="","",'Wksh 1 - Market Experience'!E5) -> Individual
C5: Effective Date of Rate Change(s): | D5: =IF('Wksh 1 - Market Experience'!#REF!<>"", 'Wksh 1 - Market Experience'!#REF!,"") -> 
C7: Product/Plan Level Calculations
B9: Field # | C9: Section I: General Product and Plan Information
B10: 1.1 | C10: Product Name | K10: Rating Area 1 | L10: AL | M10: New | N10: Platinum | O10: Yes
B11: 1.2 | C11: Product ID | K11: Rating Area 2 | L11: AK | M11: Renewing | N11: Gold | O11: No
B12: 1.3 | C12: Plan Name | K12: Rating Area 3 | L12: AZ | M12: Terminated | N12: Silver
B13: 1.4 | C13: Plan ID (Standard Component ID) | K13: Rating Area 4 | L13: AR | N13: Bronze
B14: 1.5 | C14: Metal | K14: Rating Area 5 | L14: CA | N14: Catastrophic
B15: 1.6 | C15: AV Metal Value | K15: Rating Area 6 | L15: CO | N15: Not Applicable
B16: 1.7 | C16: Plan Category | K16: Rating Area 7 | L16: CT
B17: 1.8 | C17: Plan Type | K17: Rating Area 8 | L17: DC
B18: 1.9 | C18: Exchange Plan? | L18: DE
B19: 1.10 | C19: Effective Date of Proposed Rates | L19: FL
B20: 1.11 | C20: Cumulative Rate Change % (over 12 mos prior) | L20: GA
B21: 1.12 | C21: Product Rate Increase % | L21: HI
B22: 1.13 | C22: Submission Level Rate Increase % | L22: ID
L23: IL
C24: Section II: Experience Period and Current Plan Level Information | L24: IN
B25: 2.1 | C25: Plan ID (Standard Component ID) | D25: Total | E25: =IF(E13<>"",E13,"") ->  | L25: IA
B26: 2.2 | C26: Allowed Claims | D26: =SUM(E26:XFD26) -> 0 | L26: KS
B27: 2.3 | C27: Reinsurance | D27: =SUM(E27:XFD27) -> 0 | L27: KY
B28: 2.4 | C28: Member Cost Sharing | D28: =SUM(E28:XFD28) -> 0 | L28: LA
B29: 2.5 | C29: Cost Sharing Reduction | D29: =SUM(E29:XFD29) -> 0 | L29: ME
B30: 2.6 | C30: Incurred Claims | D30: =D26-D27-D28-D29 -> 0 | E30: =E26-E27-E28-E29 -> 0 | L30: MD
B31: 2.7 | C31: Risk Adjustment Transfer Amount | D31: =SUM(E31:XFD31) -> 0 | L31: MA
B32: 2.8 | C32: Premium | D32: =SUM(E32:XFD32) -> 0 | L32: MI
B33: 2.9 | C33: Experience Period Member Months | D33: =SUM(E33:XFD33) -> 0 | L33: MN
B34: 2.10 | C34: Current Enrollment | D34: =SUM(E34:XFD34) -> 0 | L34: MS
B35: 2.11 | C35: Current Premium PMPM | D35: =SUMPRODUCT(E35:XFD35,E34:XFD34)/D34 ->  | L35: MO
B36: 2.12 | C36: Loss Ratio | D36: =D30/(D31+D32) ->  | E36: =E30/(E31+E32) ->  | L36: MT
C37: Per Member Per Month | L37: NE
B38: 2.13 | C38: Allowed Claims | D38: =D26/D33 ->  | E38: =E26/E33 ->  | L38: NV
B39: 2.14 | C39: Reinsurance | D39: =D27/D33 ->  | E39: =E27/E33 ->  | L39: NH
B40: 2.15 | C40: Member Cost Sharing | D40: =D28/D33 ->  | E40: =E28/E33 ->  | L40: NJ
B41: 2.16 | C41: Cost Sharing Reduction | D41: =D29/D33 ->  | E41: =E29/E33 ->  | L41: NM
B42: 2.17 | C42: Incurred Claims | D42: =D30/D33 ->  | E42: =E30/E33 ->  | L42: NY
B43: 2.18 | C43: Risk Adjustment Transfer Amount | D43: =D31/D33 ->  | E43: =E31/E33 ->  | L43: NC
B44: 2.19 | C44: Premium | D44: =D32/D33 ->  | E44: =E32/E33 ->  | L44: ND
L45: OH
C46: Section III: Plan Adjustment Factors | L46: OK
B47: 3.1 | C47: Plan ID (Standard Component ID) | E47: =IF(E13<>"",E13,"") ->  | L47: OR
B48: 3.2 | C48: Market Adjusted Index Rate | E48: ='Wksh 1 - Market Experience'!F46 -> 727.188664 | L48: PA
B49: 3.3 | C49: AV and Cost Sharing Design of Plan | L49: RI
B50: 3.4 | C50: Provider Network Adjustment | L50: SC
B51: 3.5 | C51: Benefits in Addition to EHB | L51: SD
C52: Administrative Costs | L52: TN
B53: 3.6 | C53: Administrative Expense | L53: TX
B54: 3.7 | C54: Taxes and Fees | L54: UT
B55: 3.8 | C55: Profit & Risk Load | L55: VT
B56: 3.9 | C56: Catastrophic Adjustment | L56: VA
B57: 3.10 | C57: Plan Adjusted Index Rate | E57: =($E$48*PRODUCT(E49:E51)*E56)/(1-SUM(E53:E55)) -> 0 | L57: WA
L58: WV
B59: 3.11 | C59: Age Calibration Factor | E59: =IF(D59<>"", D59, "") ->  | L59: WI
B60: 3.12 | C60: Geographic Calibration Factor | E60: =IF(D60<>"", D60, "") ->  | L60: WY
B61: 3.13 | C61: Tobacco Calibration Factor | E61: =IF(D61<>"", D61, "") -> 
B62: 3.14 | C62: Calibrated Plan Adjusted Index Rate | E62: =E57*(PRODUCT($E$59:$E$61)) -> 0
C64: Section IV: Projected Plan Level Information
B65: 4.1 | C65: Plan ID (Standard Component ID) | D65: Total | E65: =IF(E13<>"",E13,"") -> 
B66: 4.2 | C66: Allowed Claims | D66: =SUM(E66:XFD66) -> 0
B67: 4.3 | C67: Reinsurance | D67: =SUM(E67:XFD67) -> 0
B68: 4.4 | C68: Member Cost Sharing | D68: =SUM(E68:XFD68) -> 0
B69: 4.5 | C69: Cost Sharing Reduction | D69: =SUM(E69:XFD69) -> 0
B70: 4.6 | C70: Incurred Claims | D70: =D66-D67-D68-D69 -> 0 | E70: =E66-E67-E68-E69 -> 0
B71: 4.7 | C71: Risk Adjustment Transfer Amount | D71: =SUM(E71:XFD71) -> 0
B72: 4.8 | C72: Premium | D72: =SUM(E72:XFD72) -> 0
B73: 4.9 | C73: Projected Member Months | D73: =SUM(E73:XFD73) -> 0
B74: 4.10 | C74: Loss Ratio | D74: =D70/(D71+D72) ->  | E74: =E70/(E71+E72) -> 
C75: Per Member Per Month
B76: 4.11 | C76: Allowed Claims | D76: =D66/D73 ->  | E76: =E66/E73 -> 
B77: 4.12 | C77: Reinsurance | D77: =D67/D73 ->  | E77: =E67/E73 -> 
B78: 4.13 | C78: Member Cost Sharing | D78: =D68/D73 ->  | E78: =E68/E73 -> 
B79: 4.14 | C79: Cost Sharing Reduction | D79: =D69/D73 ->  | E79: =E69/E73 -> 
B80: 4.15 | C80: Incurred Claims | D80: =D70/D73 ->  | E80: =E70/E73 -> 
B81: 4.16 | C81: Risk Adjustment Transfer Amount | D81: =D71/D73 ->  | E81: =E71/E73 -> 
B82: 4.17 | C82: Premium | D82: =D72/D73 ->  | E82: =E72/E73 -> 
